{"text_format":"1","workbook":"xlsx","n_sheets":8,"sheets":["INÍCIO1","h livre","Concurso","DISCIPLINAS","Ciclo de Estudos","resultados","ANÁLISE DE CONC","INÍCIO"],"not_rendered":{"charts":0,"images":14,"macros":0,"external_links":2,"defined_names":2,"comments":0,"pivot_tables":0},"unopened":[],"bounds":{"document_bytes":16777216,"sheet_cells":100000,"rows_first":2000,"rows_last":500,"rows_between":2000,"halvings":0,"cell_chars":16384,"cell_head_chars":4096},"cells_cut":0,"cells_raw":0,"read":"whole","date_system":"1900"}

{"sheet":"INÍCIO1","index":0,"n_rows":19,"n_cols":6,"rows_kept":19,"cut":false,"hidden":false,"merged":[[14,5,14,6],[15,5,15,6],[16,5,16,6],[17,5,17,6],[18,5,18,6],[2,1,2,3],[6,5,6,6],[7,5,7,6],[8,5,8,6],[12,5,12,6],[13,5,13,6]]}
[]
[]
[]
[]
[]
[]
[null,null,null,null,null,"Informações de uso da planilha:"]
[null,null,null,null,null,"1) ATENÇÃO: NÃO USE ESSA PLANILHA no Google Chrome e nem no Celular.... Faça o download para seu computador e use-a no EXCEL! "]
[null,null,null,null,null,"2) A planinha é totalmente automatizada. Preencher somente nas partes não bloqueadas. "]
[]
[]
[]
[null,null,null,null,null,"ONDE ENCONTRAR O FOCO CAVEIRA - clique no link abaixo"]
[null,null,null,null,null,"SITE: www.fococaveira.com.br"]
[null,null,null,null,null,"TELEGRAM DE DICAS"]
[null,null,null,null,null,"FACEBOOK"]
[null,null,null,null,null,"INSTAGRAM: @fococaveira_"]
[null,null,null,null,null,"YOUTUBE: Foco Caveira"]
[null,null,null,null,null,"Contato Whatsapp: 67.99287-6697"]

{"sheet":"h livre","index":1,"n_rows":25,"n_cols":11,"rows_kept":25,"cut":false,"hidden":false,"merged":[[1,1,1,7],[3,0,3,7],[6,10,7,10],[8,10,9,10],[10,10,11,10]]}
[]
[]
[]
["CONTROLE DE HORAS LIVRES NA SEMANA"]
[null,"Segunda","Terça","Quarta","Quinta","Sexta","Sábado","Domingo"]
["5:00 a 6:00","ESTUDO"]
["6:00 a 7:00","ESTUDO"]
["7:00 a 8:00",null,"ESTUDO","ESTUDO","ESTUDO"]
["8:00 a 9:00","ESTUDO","ESTUDO",null,null,null,null,null,null,null,{"$f":"SUM(B25:H25)","v":1.2916666666666665}]
["9:00 a 10:00","ESTUDO","ESTUDO"]
["10:00 a 11:00","ESTUDO",null,null,null,null,null,null,null,null,"Total de estudos na semana"]
["11:00 a 12:00","ESTUDO"]
["12:00 a 13:00","almoço"]
["13:00 a 14:00","trabalho"]
["14:00 a 15:00","trabalho"]
["15:00 a 16:00","trabalho"]
["16:00 a 17:00","trabalho"]
["17:00 a 18:00","trabalho"]
["18:00 a 19:00","ESTUDO"]
["19:00 a 20:00","ESTUDO"]
["20:00 a 21:00","ESTUDO"]
["21:00 a 22:00","ESTUDO"]
["22:00 a 23:00"]
["23:00 a 0:00"]
["Total de horas de estudo","05:00:00","03:00:00","05:00:00","03:00:00","03:00:00","06:00:00","06:00:00"]

{"sheet":"Concurso","index":2,"n_rows":11,"n_cols":25,"rows_kept":11,"cut":false,"hidden":false,"merged":[[12,4,12,8],[4,20,4,21],[7,20,7,21],[9,21,9,22],[10,21,10,22],[11,21,11,22],[7,9,8,9],[4,9,5,9]]}
[]
[null,null,null,null,null,null,null,null,null,null,null,null,null,null,null,null,null,null,null,null,null,null,null,null,"PC-SP/23 - INVESTIGADOR - pós-edital"]
[]
[null,null,null,null,"Qde de Questões na Prova","Peso Questão","Valor da Questão","Total na Prova","%  da prova","MÍNIMO prova"]
[null,null,1,"INFORMÁTICA",10,1,1.25,{"$f":"E5*G5","v":12.5},{"$f":"H5/$H$10","v":0.125},0.5,null,null,null,null,null,null,null,null,null,null,{"$f":"'Ciclo de Estudos'!$Q$6","v":82}]
[null,null,2,"RAC. LÓGICO",6,1,1.25,7.5,{"$f":"H6/$H$10","v":7.4999999999999997E-2}]
[null,null,3,"PORTUGUÊS",20,1,1.25,25,{"$f":"H7/$H$10","v":0.25},0.5]
[null,null,4,"DIREITO",30,1,1.25,37.5,{"$f":"H8/$H$10","v":0.375},0.5,null,null,null,null,null,null,null,null,null,null,{"$f":"'Ciclo de Estudos'!$I$6","v":"2023-11-26"}]
[null,null,5,"CRIMINOLOGIA",14,1,1.25,17.5,{"$f":"H9/$H$10","v":0.17499999999999999}]
[null,null,null,"TOTAL",{"$f":"SUM(E5:E9)","v":80},"-",null,{"$f":"SUM(H2:H9)","v":100},{"$f":"SUM(I5:I9)","v":1},0.5]
[null,null,null,null,null,null,null,"Discursiva","100 pontos",0.5]

{"sheet":"DISCIPLINAS","index":3,"n_rows":120,"n_cols":36,"rows_kept":120,"cut":false,"hidden":false,"merged":[[0,0,0,35],[3,3,3,7],[3,9,3,14],[4,0,5,0],[4,1,5,1],[4,3,5,3],[4,4,5,4],[4,5,5,5],[4,6,5,6],[4,7,5,7],[4,9,4,14],[4,16,5,16],[4,17,5,17],[4,2,5,2],[3,19,3,20],[4,18,5,18],[3,34,3,35],[4,31,5,31],[4,32,5,32],[4,33,5,33],[4,34,5,34],[4,35,5,35],[3,17,3,18],[3,32,3,33],[4,26,5,26],[4,27,5,27],[4,28,5,28],[4,29,5,29],[4,30,5,30],[3,29,3,30],[4,25,5,25],[4,19,5,19],[4,20,5,20],[4,23,5,23],[4,24,5,24],[4,21,5,21],[4,22,5,22]]}
[]
[]
[]
[null,null,"EDITAL VERTICALIZADO","Estudei: Digite (S)",null,null,null,null,null,null,null,null,null,null,null,null,null,"digitar erro - banca cespe",null,"NÃO INCLUIR DADOS",null,null,null,null,null,null,null,null,null,"NÃO INCLUIR DADOS",null,null,"digitar erro - banca cespe",null,"NÃO INCLUIR DADOS"]
[null,"Prioridade  5 maior",{"$f":"Concurso!Y2","v":"PC-SP/23 - INVESTIGADOR - pós-edital"},"PDF","VÍDEO","RESUMO","EVER NOTE","ONDE PAREI",null,"Revisões - (S) SIM",null,null,null,null,null,null,"Q","Certo","Erro","TL","%","Q","Certo","Erro","TL","%","Q","Certo","Erro","TL","%","Q","Certo","Erro","TL","%"]
[null,null,null,null,null,null,null,null,null,"1º","2º","3º","4º","5º","6º"]
[null,null,{"$f":"Concurso!D5","v":"INFORMÁTICA"},null,null,null,null,null,null,null,null,null,null,null,null,null,null,null,null,{"$f":"R7-S7","v":0},{"$f":"IF(Q7,T7/Q7,0)","v":0},null,null,null,{"$f":"W7-X7","v":0},{"$f":"IF(V7,Y7/V7,0)","v":0},null,null,null,{"$f":"AB7-AC7","v":0},{"$f":"IF(AA7,AD7/AA7,0)","v":0},null,null,null,{"$f":"AG7-AH7","v":0},{"$f":"IF(AF7,AI7/AF7,0)","v":0}]
[null,5,"5.1 Sistema operacional: conceito de pastas, diretórios, arquivos e atalhos, área de trabalho, área de transferência, manipulação de arquivos e pastas, uso dos menus, programas e aplicativos, digitalização de arquivos, interação com o conjunto de aplicativos para escritório, sistemas operacionais de dispositivos móveis ou portáteis. ",null,null,null,null,null,null,null,null,null,null,null,null,null,null,null,null,{"$f":"R8-S8","v":0},{"$f":"IF(Q8,T8/Q8,0)","v":0},null,null,null,{"$f":"W8-X8","v":0},{"$f":"IF(V8,Y8/V8,0)","v":0},null,null,null,{"$f":"AB8-AC8","v":0},{"$f":"IF(AA8,AD8/AA8,0)","v":0},null,null,null,{"$f":"AG8-AH8","v":0},{"$f":"IF(AF8,AI8/AF8,0)","v":0}]
[null,5,"5.2 Editor de texto: estrutura básica dos documentos, edição e formatação de textos, cabeçalhos, parágrafos, fontes, colunas, marcadores simbólicos e numéricos, tabelas, impressão, controle de quebras e numeração de páginas, legendas, índices, inserção de objetos, campos predefinidos, caixas de texto. ",null,null,null,null,null,null,null,null,null,null,null,null,null,null,null,null,0,0,null,null,null,0,0,null,null,null,0,0,null,null,null,0,0]
[null,5,"5.3 Editor de planilha eletrônica: estrutura básica das planilhas, conceitos de células, linhas, colunas, pastas e gráficos, elaboração de tabelas e gráficos, uso de fórmulas, funções e macros, impressão, inserção de objetos, campos predefinidos, controle de quebras e numeração de páginas, obtenção de dados externos, aplicação de filtros, classificação de dados. ",null,null,null,null,null,null,null,null,null,null,null,null,null,null,null,null,0,0,null,null,null,0,0,null,null,null,0,0,null,null,null,0,0]
[null,5,"5.4 Mensageria eletrônica: conceito e utilização; correio eletrônico, uso de correio eletrônico, preparo e envio de mensagens, criação de regras para mensagens, anexação de arquivos, aplicativos de comunicação por mensagens em dispositivos móveis ou portáteis. ",null,null,null,null,null,null,null,null,null,null,null,null,null,null,null,null,0,0,null,null,null,0,0,null,null,null,0,0,null,null,null,0,0]
[null,3,"5.5 Voz sobre IP (VOIP): conceito e utilização; softwares e aplicativos de comunicação por voz, áudio ou vídeo (videochamadas e videoconferências). ",null,null,null,null,null,null,null,null,null,null,null,null,null,null,null,null,0,0,null,null,null,0,0,null,null,null,0,0,null,null,null,0,0]
[null,5,"5.6 Redes: conceitos, navegadores para computadores e dispositivos móveis ou portáteis, conceito de internet e intranet, conceitos de URL, links, sítios eletrônicos (sites), busca e impressão de páginas, redes sociais, sistemas de busca e pesquisa, proteção e segurança, configurações, armazenamento de dados na nuvem (cloud storage), deep web e dark web.",null,null,null,null,null,null,null,null,null,null,null,null,null,null,null,null,0,0,null,null,null,0,0,null,null,null,0,0,null,null,null,0,0]
[null,3,"5.7 Hardware: Microcomputadores e periféricos: configuração básica e componentes; Impressoras: classificação e noções gerais; dispositivos de armazenamento externo: conceito, classificação e noções gerais; dispositivos móveis ou portáteis: smartphones e tablets. ",null,null,null,null,null,null,null,null,null,null,null,null,null,null,null,null,0,0,null,null,null,0,0,null,null,null,0,0,null,null,null,0,0]
[null,5,"5.8 Softwares maliciosos: malware, ransomware, vírus, phishing; spam; engenharia social; segurança da informação: mecanismos de segurança de redes, computadores, dispositivos móveis ou portáteis, autenticações em duas etapas, proteção de dados pessoais.",null,null,null,null,null,null,null,null,null,null,null,null,null,null,null,null,0,0,null,null,null,0,0,null,null,null,0,0,null,null,null,0,0]
[null,5,"5.9 Ambiente em rede: conceitos, navegadores, navegação internet e intranet, conceitos de URL, links, endereços eletrônicos (sites), busca e impressão de páginas, redes sociais, sistemas de busca e pesquisa, proteção e segurança, configurações, armazenamento de dados na nuvem (cloud storage).",null,null,null,null,null,null,null,null,null,null,null,null,null,null,null,null,0,0,null,null,null,0,0,null,null,null,0,0,null,null,null,0,0]
[null,5,"5.10 Crimes virtuais e cibersegurança: Deepweb e Darkweb. Provas digitais. Criptomoedas",null,null,null,null,null,null,null,null,null,null,null,null,null,null,null,null,0,0,null,null,null,0,0,null,null,null,0,0,null,null,null,0,0]
[null,null,{"$f":"[2]Concurso!D6","v":"RAC. LÓGICO"},null,null,null,null,null,null,null,null,null,null,null,null,null,null,null,null,0,0,null,null,null,0,0,null,null,null,0,0,null,null,null,0,0]
[null,5,"4.1 Estrutura lógica das relações arbitrárias entre pessoas, lugares, coisas, eventos fictícios; dedução de novas informações das relações fornecidas e avaliação das condições usadas para estabelecer a estrutura dessas relações.",null,null,null,null,null,null,null,null,null,null,null,null,null,null,null,null,0,0,null,null,null,0,0,null,null,null,0,0,null,null,null,0,0]
[null,5,"4.2 Identificação das regularidades de uma sequência, numérica ou figural, de modo a indicar qual é o elemento de uma dada posição.",null,null,null,null,null,null,null,null,null,null,null,null,null,null,null,null,0,0,null,null,null,0,0,null,null,null,0,0,null,null,null,0,0]
[null,5,"4.3 Estruturas lógicas e lógica de argumentação",null,null,null,null,null,null,null,null,null,null,null,null,null,null,null,null,0,0,null,null,null,0,0,null,null,null,0,0,null,null,null,0,0]
[null,null,{"$f":"[2]Concurso!D7","v":"PORTUGUÊS"},null,null,null,null,null,null,null,null,null,null,null,null,null,null,null,null,0,0,null,null,null,0,0,null,null,null,0,0,null,null,null,0,0]
[null,5,"1.1 Leitura e interpretação de diversos tipos de textos (literários, não literários, inclusive técnico e mistos).",null,null,null,null,null,null,null,null,null,null,null,null,null,null,null,null,0,0,null,null,null,0,0,null,null,null,0,0,null,null,null,0,0]
[null,3,"1.2 Ortografia.",null,null,null,null,null,null,null,null,null,null,null,null,null,null,null,null,0,0,null,null,null,0,0,null,null,null,0,0,null,null,null,0,0]
[null,5,"1.3 Acentuação.",null,null,null,null,null,null,null,null,null,null,null,null,null,null,null,null,0,0,null,null,null,0,0,null,null,null,0,0,null,null,null,0,0]
[null,5,"1.4 Sinônimos e antônimos.",null,null,null,null,null,null,null,null,null,null,null,null,null,null,null,null,0,0,null,null,null,0,0,null,null,null,0,0,null,null,null,0,0]
[null,5,"1.5 Sentido próprio e figurado das palavras.",null,null,null,null,null,null,null,null,null,null,null,null,null,null,null,null,0,0,null,null,null,0,0,null,null,null,0,0,null,null,null,0,0]
[null,5,"1.6 Pontuação.",null,null,null,null,null,null,null,null,null,null,null,null,null,null,null,null,0,0,null,null,null,0,0,null,null,null,0,0,null,null,null,0,0]
[null,5,"1.7 Classes de palavras: substantivo, adjetivo, numeral, artigo, pronome, verbo, advérbio, preposição e conjunção e interjeição, emprego e sentido que imprimem às relações que estabelecem.",null,null,null,null,null,null,null,null,null,null,null,null,null,null,null,null,0,0,null,null,null,0,0,null,null,null,0,0,null,null,null,0,0]
[null,3,"1.8 Emprego de tempos e modos verbais.",null,null,null,null,null,null,null,null,null,null,null,null,null,null,null,null,0,0,null,null,null,0,0,null,null,null,0,0,null,null,null,0,0]
[null,5,"1.9 Frases e tipos de frases.",null,null,null,null,null,null,null,null,null,null,null,null,null,null,null,null,0,0,null,null,null,0,0,null,null,null,0,0,null,null,null,0,0]
[null,5,"1.10 Oração: termos essenciais da oração, termos integrantes da oração, termos acessórios da oração, coordenação e subordinação.",null,null,null,null,null,null,null,null,null,null,null,null,null,null,null,null,0,0,null,null,null,0,0,null,null,null,0,0,null,null,null,0,0]
[null,5,"1.11 Concordância verbal e nominal.",null,null,null,null,null,null,null,null,null,null,null,null,null,null,null,null,0,0,null,null,null,0,0,null,null,null,0,0,null,null,null,0,0]
[null,5,"1.12 Regência verbal e nominal.",null,null,null,null,null,null,null,null,null,null,null,null,null,null,null,null,0,0,null,null,null,0,0,null,null,null,0,0,null,null,null,0,0]
[null,5,"1.13 Colocação pronominal.",null,null,null,null,null,null,null,null,null,null,null,null,null,null,null,null,0,0,null,null,null,0,0,null,null,null,0,0,null,null,null,0,0]
[null,5,"1.14 Semântica.",null,null,null,null,null,null,null,null,null,null,null,null,null,null,null,null,0,0,null,null,null,0,0,null,null,null,0,0,null,null,null,0,0]
[null,5,"1.15 Crase.",null,null,null,null,null,null,null,null,null,null,null,null,null,null,null,null,0,0,null,null,null,0,0,null,null,null,0,0,null,null,null,0,0]
[null,5,"1.16 Análise morfossintática.",null,null,null,null,null,null,null,null,null,null,null,null,null,null,null,null,0,0,null,null,null,0,0,null,null,null,0,0,null,null,null,0,0]
[null,5,"1.17 Vícios de linguagem.",null,null,null,null,null,null,null,null,null,null,null,null,null,null,null,null,0,0,null,null,null,0,0,null,null,null,0,0,null,null,null,0,0]
[null,null,"DIREITO",null,null,null,null,null,null,null,null,null,null,null,null,null,null,null,null,0,0,null,null,null,0,0,null,null,null,0,0,null,null,null,0,0]
[null,null,"DIREITO CONSTITUCIONAL",null,null,null,null,null,null,null,null,null,null,null,null,null,null,null,null,0,0,null,null,null,0,0,null,null,null,0,0,null,null,null,0,0]
[null,5,"2.1 Constituição da República Federativa do Brasil: artigos 1.º a 14, 37, 39, 41 e 144. ",null,null,null,null,null,null,null,null,null,null,null,null,null,null,null,null,0,0,null,null,null,0,0,null,null,null,0,0,null,null,null,0,0]
[null,5,"2.2 Constituição do Estado de São Paulo: artigos 111, 139, 140 e 141. ",null,null,null,null,null,null,null,null,null,null,null,null,null,null,null,null,0,0,null,null,null,0,0,null,null,null,0,0,null,null,null,0,0]
[null,null,"DIREITOS HUMANOS",null,null,null,null,null,null,null,null,null,null,null,null,null,null,null,null,0,0,null,null,null,0,0,null,null,null,0,0,null,null,null,0,0]
[null,3,"2.3.1 Conceito e evolução histórica.",null,null,null,null,null,null,null,null,null,null,null,null,null,null,null,null,0,0,null,null,null,0,0,null,null,null,0,0,null,null,null,0,0]
[null,3,"2.3.2 Estado Democrático de Direito.",null,null,null,null,null,null,null,null,null,null,null,null,null,null,null,null,0,0,null,null,null,0,0,null,null,null,0,0,null,null,null,0,0]
[null,3,"2.3.3 Direitos Humanos e Cidadania.",null,null,null,null,null,null,null,null,null,null,null,null,null,null,null,null,0,0,null,null,null,0,0,null,null,null,0,0,null,null,null,0,0]
[null,5,"2.3.4 Declaração Universal dos Direitos Humanos.",null,null,null,null,null,null,null,null,null,null,null,null,null,null,null,null,0,0,null,null,null,0,0,null,null,null,0,0,null,null,null,0,0]
[null,5,"2.3.5 Pacto Internacional dos Direitos Civis e Políticos.",null,null,null,null,null,null,null,null,null,null,null,null,null,null,null,null,0,0,null,null,null,0,0,null,null,null,0,0,null,null,null,0,0]
[null,5,"2.3.6 Pacto Internacional dos Direitos Econômicos, Sociais e Culturais.",null,null,null,null,null,null,null,null,null,null,null,null,null,null,null,null,0,0,null,null,null,0,0,null,null,null,0,0,null,null,null,0,0]
[null,5,"2.3.7 Convenção Americana de Direitos Humanos (Pacto de San José da Costa Rica).",null,null,null,null,null,null,null,null,null,null,null,null,null,null,null,null,0,0,null,null,null,0,0,null,null,null,0,0,null,null,null,0,0]
[null,5,"2.3.8 Convenção Contra a Tortura e outros Tratamentos ou Penas Cruéis, Desumanos ou Degradantes.",null,null,null,null,null,null,null,null,null,null,null,null,null,null,null,null,0,0,null,null,null,0,0,null,null,null,0,0,null,null,null,0,0]
[null,3,"2.3.9 Estatuto de Roma.",null,null,null,null,null,null,null,null,null,null,null,null,null,null,null,null,0,0,null,null,null,0,0,null,null,null,0,0,null,null,null,0,0]
[null,3,"2.3.10 Grupos vulneráveis e minorias. Diversidade étnico-racial: história, preconceito, discriminação, racismo, igualdade, ações afirmativas.",null,null,null,null,null,null,null,null,null,null,null,null,null,null,null,null,0,0,null,null,null,0,0,null,null,null,0,0,null,null,null,0,0]
[null,null,"DIREITO PENAL",null,null,null,null,null,null,null,null,null,null,null,null,null,null,null,null,0,0,null,null,null,0,0,null,null,null,0,0,null,null,null,0,0]
[null,5,"2.4.1 Da aplicação da lei penal: artigos 1º a 12.",null,null,null,null,null,null,null,null,null,null,null,null,null,null,null,null,0,0,null,null,null,0,0,null,null,null,0,0,null,null,null,0,0]
[null,5,"2.4.2 Do crime: artigos 13 a 25.",null,null,null,null,null,null,null,null,null,null,null,null,null,null,null,null,0,0,null,null,null,0,0,null,null,null,0,0,null,null,null,0,0]
[null,5,"2.4.3 Concurso de Pessoas: artigos 29 a 31.",null,null,null,null,null,null,null,null,null,null,null,null,null,null,null,null,0,0,null,null,null,0,0,null,null,null,0,0,null,null,null,0,0]
[null,5,"2.4.4 Concurso de Crimes: artigos 69 a 71.",null,null,null,null,null,null,null,null,null,null,null,null,null,null,null,null,0,0,null,null,null,0,0,null,null,null,0,0,null,null,null,0,0]
[null,5,"2.4.5 Dos Crimes contra a Vida: artigos 121 a 128.",null,null,null,null,null,null,null,null,null,null,null,null,null,null,null,null,0,0,null,null,null,0,0,null,null,null,0,0,null,null,null,0,0]
[null,5,"2.4.6 Das Lesões Corporais: artigo 129.",null,null,null,null,null,null,null,null,null,null,null,null,null,null,null,null,0,0,null,null,null,0,0,null,null,null,0,0,null,null,null,0,0]
[null,3,"2.4.7 Dos Crimes contra a Honra: artigos 138 a 145.",null,null,null,null,null,null,null,null,null,null,null,null,null,null,null,null,0,0,null,null,null,0,0,null,null,null,0,0,null,null,null,0,0]
[null,3,"2.4.8 Dos Crimes contra a Liberdade Individual: artigos 146 a 149-A.",null,null,null,null,null,null,null,null,null,null,null,null,null,null,null,null,0,0,null,null,null,0,0,null,null,null,0,0,null,null,null,0,0]
[null,3,"2.4.9 Dos Crimes contra a Inviolabilidade do Domicílio: artigo 150.",null,null,null,null,null,null,null,null,null,null,null,null,null,null,null,null,0,0,null,null,null,0,0,null,null,null,0,0,null,null,null,0,0]
[null,3,"2.4.10 Dos Crimes contra a Inviolabilidade de Segredos: artigos 153 a 154-B.",null,null,null,null,null,null,null,null,null,null,null,null,null,null,null,null,0,0,null,null,null,0,0,null,null,null,0,0,null,null,null,0,0]
[null,5,"2.4.11 Dos Crimes contra o Patrimônio: artigos 155 a 183.",null,null,null,null,null,null,null,null,null,null,null,null,null,null,null,null,0,0,null,null,null,0,0,null,null,null,0,0,null,null,null,0,0]
[null,3,"2.4.12 Dos Crimes contra a Dignidade Sexual: artigos 213 a 234-B.",null,null,null,null,null,null,null,null,null,null,null,null,null,null,null,null,0,0,null,null,null,0,0,null,null,null,0,0,null,null,null,0,0]
[null,3,"2.4.13 Dos Crimes contra a Fé Pública: artigos 289 a 311-A.",null,null,null,null,null,null,null,null,null,null,null,null,null,null,null,null,0,0,null,null,null,0,0,null,null,null,0,0,null,null,null,0,0]
[null,3,"2.4.14 Dos Crimes contra a Paz Pública: artigos 286 a 288-A.",null,null,null,null,null,null,null,null,null,null,null,null,null,null,null,null,0,0,null,null,null,0,0,null,null,null,0,0,null,null,null,0,0]
[null,5,"2.4.15 Dos Crimes Praticados por F. Público contra a Adm. em Geral: artigos 312 a 327.",null,null,null,null,null,null,null,null,null,null,null,null,null,null,null,null,0,0,null,null,null,0,0,null,null,null,0,0,null,null,null,0,0]
[null,5,"2.4.16 Dos Crimes Praticados por Particular contra a Adm. Geral: artigos 328 a 334-A.",null,null,null,null,null,null,null,null,null,null,null,null,null,null,null,null,0,0,null,null,null,0,0,null,null,null,0,0,null,null,null,0,0]
[null,5,"2.4.17 Dos Crimes contra a Administração da Justiça: artigos 338 a 359.",null,null,null,null,null,null,null,null,null,null,null,null,null,null,null,null,{"$f":"R72-S72","v":0},{"$f":"IF(Q72,T72/Q72,0)","v":0},null,null,null,{"$f":"W72-X72","v":0},{"$f":"IF(V72,Y72/V72,0)","v":0},null,null,null,{"$f":"AB72-AC72","v":0},{"$f":"IF(AA72,AD72/AA72,0)","v":0},null,null,null,{"$f":"AG72-AH72","v":0},{"$f":"IF(AF72,AI72/AF72,0)","v":0}]
[null,null,"DIREITO PROCESSUAL PENAL",null,null,null,null,null,null,null,null,null,null,null,null,null,null,null,null,0,0,null,null,null,0,0,null,null,null,0,0,null,null,null,0,0]
[null,5,"2.5.1 Do Inquérito Policial: artigos 4º a 23.",null,null,null,null,null,null,null,null,null,null,null,null,null,null,null,null,0,0,null,null,null,0,0,null,null,null,0,0,null,null,null,0,0]
[null,5,"2.5.2 Da Ação Penal: artigos 24 a 62.",null,null,null,null,null,null,null,null,null,null,null,null,null,null,null,null,0,0,null,null,null,0,0,null,null,null,0,0,null,null,null,0,0]
[null,3,"2.5.3 Da Restituição de Coisas Apreendidas: artigos 118 a 124-A.",null,null,null,null,null,null,null,null,null,null,null,null,null,null,null,null,0,0,null,null,null,0,0,null,null,null,0,0,null,null,null,0,0]
[null,5,"2.5.4 Das Provas: artigos 155 a 250.",null,null,null,null,null,null,null,null,null,null,null,null,null,null,null,null,0,0,null,null,null,0,0,null,null,null,0,0,null,null,null,0,0]
[null,5,"2.5.5 Da Prisão, das Medidas Cautelares e da Liberdade Provisória: artigos 282 a 350.",null,null,null,null,null,null,null,null,null,null,null,null,null,null,null,null,0,0,null,null,null,0,0,null,null,null,0,0,null,null,null,0,0]
[null,null,"LEGISLAÇÃO ESPECIAL",null,null,null,null,null,null,null,null,null,null,null,null,null,null,null,null,0,0,null,null,null,0,0,null,null,null,0,0,null,null,null,0,0]
[null,3,"2.6.1 Decreto-Lei nº 3.688/1941 (Lei das Contravenções Penais).",null,null,null,null,null,null,null,null,null,null,null,null,null,null,null,null,0,0,null,null,null,0,0,null,null,null,0,0,null,null,null,0,0]
[null,5,"2.6.2 Lei nº 7.716/1989 (Crimes de Preconceito Racial).",null,null,null,null,null,null,null,null,null,null,null,null,null,null,null,null,0,0,null,null,null,0,0,null,null,null,0,0,null,null,null,0,0]
[null,5,"2.6.3 Lei nº 8.069/1990 (ECA): artigos 2º, 171 a 178, 225 a 244-B.",null,null,null,null,null,null,null,null,null,null,null,null,null,null,null,null,0,0,null,null,null,0,0,null,null,null,0,0,null,null,null,0,0]
[null,5,"2.6.4 Lei nº 8.072/1990 (Crimes Hediondos).",null,null,null,null,null,null,null,null,null,null,null,null,null,null,null,null,0,0,null,null,null,0,0,null,null,null,0,0,null,null,null,0,0]
[null,5,"2.6.5 Lei nº 8.429/1992 (Lei de Improbidade Administrativa).",null,null,null,null,null,null,null,null,null,null,null,null,null,null,null,null,0,0,null,null,null,0,0,null,null,null,0,0,null,null,null,0,0]
[null,3,"2.6.6 Lei nº 9.099/95, com as alterações feitas pela Lei n.º 11.313/06 (Lei dos Juizados Especiais Criminais): artigos 60 a 76, 88 a 92.",null,null,null,null,null,null,null,null,null,null,null,null,null,null,null,null,0,0,null,null,null,0,0,null,null,null,0,0,null,null,null,0,0]
[null,5,"2.6.7 Lei nº 9.296/1996 (Lei de Interceptação Telefônica).",null,null,null,null,null,null,null,null,null,null,null,null,null,null,null,null,0,0,null,null,null,0,0,null,null,null,0,0,null,null,null,0,0]
[null,5,"2.6.8 Lei nº 9.455/1997 (Tortura).",null,null,null,null,null,null,null,null,null,null,null,null,null,null,null,null,0,0,null,null,null,0,0,null,null,null,0,0,null,null,null,0,0]
[null,5,"2.6.9 Dos crimes previstos na Lei nº 9.503/1997 (CTB): artigos 291 a 312-B",null,null,null,null,null,null,null,null,null,null,null,null,null,null,null,null,0,0,null,null,null,0,0,null,null,null,0,0,null,null,null,0,0]
[null,5,"2.6.10 Dos crimes previstos na Lei nº 9.503/1997 (CTB): artigos 291 a 312-B;",null,null,null,null,null,null,null,null,null,null,null,null,null,null,null,null,0,0,null,null,null,0,0,null,null,null,0,0,null,null,null,0,0]
[null,3,"2.6.11 Lei nº 9.605/1998 (Lei do Meio Ambiente): artigos 32, 42 e 65. 2.6.12 Lei nº 10.741/2003 (Estatuto da Pessoa Idosa): artigos 93 a 109.",null,null,null,null,null,null,null,null,null,null,null,null,null,null,null,null,0,0,null,null,null,0,0,null,null,null,0,0,null,null,null,0,0]
[null,5,"2.6.13 Lei nº 10.826/2003 (Estatuto do Desarmamento): artigos 12 a 21.",null,null,null,null,null,null,null,null,null,null,null,null,null,null,null,null,0,0,null,null,null,0,0,null,null,null,0,0,null,null,null,0,0]
[null,5,"2.6.14 Lei nº 11.340/2006 (Lei \"Maria da Penha\"): artigos 1.º a 22, 24 e 41.",null,null,null,null,null,null,null,null,null,null,null,null,null,null,null,null,0,0,null,null,null,0,0,null,null,null,0,0,null,null,null,0,0]
[null,5,"2.6.15 Lei nº 11.343/2006 (Lei Antidrogas).",null,null,null,null,null,null,null,null,null,null,null,null,null,null,null,null,0,0,null,null,null,0,0,null,null,null,0,0,null,null,null,0,0]
[null,5,"2.6.16 Lei nº 12.850/2013 (Repressão às Organizações Criminosas).",null,null,null,null,null,null,null,null,null,null,null,null,null,null,null,null,0,0,null,null,null,0,0,null,null,null,0,0,null,null,null,0,0]
[null,3,"2.6.17 Lei nº 13.146/2015 (Estatuto da Pessoa com Deficiência): artigos 88 a 91.",null,null,null,null,null,null,null,null,null,null,null,null,null,null,null,null,0,0,null,null,null,0,0,null,null,null,0,0,null,null,null,0,0]
[null,3,"2.6.18 Lei nº 13.344/2016 (Prevenção e Repressão ao Tráfico de Pessoas).",null,null,null,null,null,null,null,null,null,null,null,null,null,null,null,null,0,0,null,null,null,0,0,null,null,null,0,0,null,null,null,0,0]
[null,3,"2.6.19 Lei nº 13.709/2018 (Lei Geral de Proteção de Dados).",null,null,null,null,null,null,null,null,null,null,null,null,null,null,null,null,0,0,null,null,null,0,0,null,null,null,0,0,null,null,null,0,0]
[null,5,"2.6.20 Lei nº 13.869/2019 (Lei de Abuso de Autoridade).",null,null,null,null,null,null,null,null,null,null,null,null,null,null,null,null,0,0,null,null,null,0,0,null,null,null,0,0,null,null,null,0,0]
[null,5,"2.6.21 Lei nº 14.155/2021 (Lei de Proteção de Dados - Penal).",null,null,null,null,null,null,null,null,null,null,null,null,null,null,null,null,0,0,null,null,null,0,0,null,null,null,0,0,null,null,null,0,0]
[null,3,"2.6.22 Lei Orgânica da Polícia do Estado de São Paulo (Lei Complementar nº 207/1979, Lei Complementar nº 922/02 e Lei Complementar nº 1.151/11).",null,null,null,null,null,null,null,null,null,null,null,null,null,null,null,null,0,0,null,null,null,0,0,null,null,null,0,0,null,null,null,0,0]
[null,5,"2.6.23 Lei Estadual nº 10.261/1968 (Estatuto dos Funcionários Públicos Civis do Estado de São Paulo).",null,null,null,null,null,null,null,null,null,null,null,null,null,null,null,null,0,0,null,null,null,0,0,null,null,null,0,0,null,null,null,0,0]
[null,5,"2.5.24 Lei 14.344/2022 (Lei Henry Borel).",null,null,null,null,null,null,null,null,null,null,null,null,null,null,null,null,0,0,null,null,null,0,0,null,null,null,0,0,null,null,null,0,0]
[null,5,"2.5.25 Lei nº 14.540/2023 (Institui o Programa de Prevenção ao Assédio Sexual e demais Crimes contra a Dignidade Sexual e à Violência Sexual no âmbito da Administração Pública Direta e Indireta Federal, Estadual, Distrital e Municipal).",null,null,null,null,null,null,null,null,null,null,null,null,null,null,null,null,0,0,null,null,null,0,0,null,null,null,0,0,null,null,null,0,0]
[null,5,"2.5.26 Lei nº 14.541/2023 (Dispõe sobre a Criação e o Funcionamento Ininterrupto de Delegacias Especializadas de Atendimento à Mulher).",null,null,null,null,null,null,null,null,null,null,null,null,null,null,null,null,0,0,null,null,null,0,0,null,null,null,0,0,null,null,null,0,0]
[null,null,"DIREITO ADMINISTRATIVO",null,null,null,null,null,null,null,null,null,null,null,null,null,null,null,null,0,0,null,null,null,0,0,null,null,null,0,0,null,null,null,0,0]
[null,3,"2.7.1 Dos princípios da Administração Pública. ",null,null,null,null,null,null,null,null,null,null,null,null,null,null,null,null,0,0,null,null,null,0,0,null,null,null,0,0,null,null,null,0,0]
[null,5,"2.7.2 Da Administração Pública Direta e Indireta. ",null,null,null,null,null,null,null,null,null,null,null,null,null,null,null,null,0,0,null,null,null,0,0,null,null,null,0,0,null,null,null,0,0]
[null,5,"2.7.3 Dos poderes administrativos. ",null,null,null,null,null,null,null,null,null,null,null,null,null,null,null,null,0,0,null,null,null,0,0,null,null,null,0,0,null,null,null,0,0]
[null,5,"2.7.4 Atos administrativos. ",null,null,null,null,null,null,null,null,null,null,null,null,null,null,null,null,0,0,null,null,null,0,0,null,null,null,0,0,null,null,null,0,0]
[null,3,"2.7.5 Serviços Públicos: conceito, princípios e classificação. ",null,null,null,null,null,null,null,null,null,null,null,null,null,null,null,null,0,0,null,null,null,0,0,null,null,null,0,0,null,null,null,0,0]
[null,5,"2.7.6 Responsabilidade Civil do Estado.",null,null,null,null,null,null,null,null,null,null,null,null,null,null,null,null,0,0,null,null,null,0,0,null,null,null,0,0,null,null,null,0,0]
[null,5," 2.7.7 Controle da Administração.",null,null,null,null,null,null,null,null,null,null,null,null,null,null,null,null,0,0,null,null,null,0,0,null,null,null,0,0,null,null,null,0,0]
[null,null,"CRIMINOLOGIA",null,null,null,null,null,null,null,null,null,null,null,null,null,null,null,null,0,0,null,null,null,0,0,null,null,null,0,0,null,null,null,0,0]
[null,5,"3.1 Conceito, método, objeto e finalidade da Criminologia.",null,null,null,null,null,null,null,null,null,null,null,null,null,null,null,null,0,0,null,null,null,0,0,null,null,null,0,0,null,null,null,0,0]
[null,5,"3.2 Criminologia do Consenso e do Conflito.",null,null,null,null,null,null,null,null,null,null,null,null,null,null,null,null,0,0,null,null,null,0,0,null,null,null,0,0,null,null,null,0,0]
[null,5,"3.3 Vitimologia, Vitimização e Vitimodogmática.",null,null,null,null,null,null,null,null,null,null,null,null,null,null,null,null,0,0,null,null,null,0,0,null,null,null,0,0,null,null,null,0,0]
[null,5,"3.4 Criminalidade de Massa, Moderna e Organizada.",null,null,null,null,null,null,null,null,null,null,null,null,null,null,null,null,0,0,null,null,null,0,0,null,null,null,0,0,null,null,null,0,0]
[null,5,"3.5 Nova Criminologia. 3.5.1 Criminologia Feminista. 3.5.2 Criminologia Cultural. 3.5.3 Criminologia Queer. 3.5.4 Criminologia Ambiental. 3.5.5 Criminologia Racial. 3.5.6 Criminologia Clínica.",null,null,null,null,null,null,null,null,null,null,null,null,null,null,null,null,0,0,null,null,null,0,0,null,null,null,0,0,null,null,null,0,0]
[null,5,"3.6 Modelos de Prevenção e Reação ao Fenômeno Criminal",null,null,null,null,null,null,null,null,null,null,null,null,null,null,null,null,0,0,null,null,null,0,0,null,null,null,0,0,null,null,null,0,0]
[{"$f":"SUM(A7:A119)","v":0},null,null,null,null,null,null,null,null,null,null,null,null,null,null,null,{"$f":"SUM(Q7:Q119)","v":0},{"$f":"SUM(R7:R119)","v":0},{"$f":"SUM(S7:S119)","v":0},{"$f":"R120-S120","v":0},{"$f":"IF(Q120,T120/Q120,0)","v":0},{"$f":"SUM(V7:V119)","v":0},{"$f":"SUM(W7:W119)","v":0},{"$f":"SUM(X7:X119)","v":0},{"$f":"SUM(Y7:Y119)","v":0},{"$f":"IF(V120,Y120/V120,0)","v":0},{"$f":"SUM(AA7:AA119)","v":0},{"$f":"SUM(AB7:AB119)","v":0},{"$f":"SUM(AC7:AC119)","v":0},{"$f":"SUM(AD7:AD119)","v":0},{"$f":"IF(AA120,AD120/AA120,0)","v":0},{"$f":"SUM(AF7:AF119)","v":0},{"$f":"SUM(AG7:AG119)","v":0},{"$f":"SUM(AH7:AH119)","v":0},{"$f":"SUM(AI7:AI119)","v":0},{"$f":"IF(AF120,AI120/AF120,0)","v":0}]

{"sheet":"Ciclo de Estudos","index":4,"n_rows":303,"n_cols":32,"rows_kept":303,"cut":false,"hidden":false,"merged":[[1,20,1,21],[7,1,13,2],[7,3,7,5],[7,7,7,9],[7,11,7,13],[7,15,7,17],[7,19,7,21],[7,23,7,25],[7,27,7,29],[16,1,22,2],[16,3,16,5],[16,7,16,9],[16,11,16,13],[16,15,16,17],[16,19,16,21],[16,23,16,25],[16,27,16,29],[25,1,31,2],[25,3,25,5],[25,7,25,9],[25,11,25,13],[25,15,25,17],[25,19,25,21],[25,23,25,25],[25,27,25,29],[34,1,40,2],[34,3,34,5],[34,7,34,9],[34,11,34,13],[34,15,34,17],[34,19,34,21],[34,23,34,25],[34,27,34,29],[43,1,49,2],[43,3,43,5],[43,7,43,9],[43,11,43,13],[43,15,43,17],[43,19,43,21],[43,23,43,25],[43,27,43,29],[52,1,58,2],[52,3,52,5],[52,7,52,9],[52,11,52,13],[52,15,52,17],[52,19,52,21],[52,23,52,25],[52,27,52,29],[61,1,67,2],[61,3,61,5],[61,7,61,9],[61,11,61,13],[61,15,61,17],[61,19,61,21],[61,23,61,25],[61,27,61,29],[70,1,76,2],[70,3,70,5],[70,7,70,9],[70,11,70,13],[70,15,70,17],[70,19,70,21],[70,23,70,25],[70,27,70,29],[79,1,85,2],[79,3,79,5],[79,7,79,9],[79,11,79,13],[79,15,79,17],[79,19,79,21],[79,23,79,25],[79,27,79,29],[88,1,94,2],[88,3,88,5],[88,7,88,9],[88,11,88,13],[88,15,88,17],[88,19,88,21],[88,23,88,25],[88,27,88,29],[97,1,103,2],[97,3,97,5],[97,7,97,9],[97,11,97,13],[97,15,97,17],[97,19,97,21],[97,23,97,25],[97,27,97,29],[106,1,112,2],[106,3,106,5],[106,7,106,9],[106,11,106,13],[106,15,106,17],[106,19,106,21],[106,23,106,25],[106,27,106,29],[115,1,121,2],[115,3,115,5],[115,7,115,9],[115,11,115,13],[115,15,115,17],[115,19,115,21],[115,23,115,25],[115,27,115,29],[124,1,130,2],[124,3,124,5],[124,7,124,9],[124,11,124,13],[124,15,124,17],[124,19,124,21],[124,23,124,25],[124,27,124,29],[133,1,139,2],[133,3,133,5],[133,7,133,9],[133,11,133,13],[133,15,133,17],[133,19,133,21],[133,23,133,25],[133,27,133,29],[142,1,148,2],[142,3,142,5],[142,7,142,9],[142,11,142,13],[142,15,142,17],[142,19,142,21],[142,23,142,25],[142,27,142,29],[151,1,157,2],[151,3,151,5],[151,7,151,9],[151,11,151,13],[151,15,151,17],[151,19,151,21],[151,23,151,25],[151,27,151,29],[160,1,166,2],[160,3,160,5],[160,7,160,9],[160,11,160,13],[160,15,160,17],[160,19,160,21],[160,23,160,25],[160,27,160,29],[169,1,175,2],[169,3,169,5],[169,7,169,9],[169,11,169,13],[169,15,169,17],[169,19,169,21],[169,23,169,25],[169,27,169,29],[178,1,184,2],[178,3,178,5],[178,7,178,9],[178,11,178,13],[178,15,178,17],[178,19,178,21],[178,23,178,25],[178,27,178,29],[187,1,193,2],[187,3,187,5],[187,7,187,9],[187,11,187,13],[187,15,187,17],[187,19,187,21],[187,23,187,25],[187,27,187,29],[196,1,202,2],[196,3,196,5],[196,7,196,9],[196,11,196,13],[196,15,196,17],[196,19,196,21],[196,23,196,25],[196,27,196,29],[205,1,211,2],[205,3,205,5],[205,7,205,9],[205,11,205,13],[205,15,205,17],[205,19,205,21],[205,23,205,25],[205,27,205,29],[214,1,220,2],[214,3,214,5],[214,7,214,9],[214,11,214,13],[214,15,214,17],[214,19,214,21],[214,23,214,25],[214,27,214,29],[223,1,229,2],[223,3,223,5],[223,7,223,9],[223,11,223,13],[223,15,223,17],[223,19,223,21],[223,23,223,25],[223,27,223,29],[232,1,238,2],[232,3,232,5],[232,7,232,9],[232,11,232,13],[232,15,232,17],[232,19,232,21],[232,23,232,25],[232,27,232,29],[241,1,247,2],[241,3,241,5],[241,7,241,9],[241,11,241,13],[241,15,241,17],[241,19,241,21],[241,23,241,25],[241,27,241,29],[250,1,256,2],[250,3,250,5],[250,7,250,9],[250,11,250,13],[250,15,250,17],[250,19,250,21],[250,23,250,25],[250,27,250,29],[259,1,265,2],[259,3,259,5],[259,7,259,9],[259,11,259,13],[259,15,259,17],[259,19,259,21],[259,23,259,25],[259,27,259,29],[268,1,274,2],[268,3,268,5],[268,7,268,9],[268,11,268,13],[268,15,268,17],[268,19,268,21],[268,23,268,25],[268,27,268,29],[277,1,283,2],[277,3,277,5],[277,7,277,9],[277,11,277,13],[277,15,277,17],[277,19,277,21],[277,23,277,25],[277,27,277,29],[286,1,292,2],[286,3,286,5],[286,7,286,9],[286,11,286,13],[286,15,286,17],[286,19,286,21],[286,23,286,25],[286,27,286,29],[295,1,301,2],[295,3,295,5],[295,7,295,9],[295,11,295,13],[295,15,295,17],[295,19,295,21],[295,23,295,25],[295,27,295,29]]}
[]
[null,null,null,null,null,null,null,null,null,null,null,null,null,null,null,null,null,null,null,null,{"$f":"NOW()","v":"2023-09-05T17:36:10.850"}]
[]
[]
[]
[null,null,null,null,"2022-02-28",null,null,null,"2023-11-26",null,null,null,0.83333333333333337,null,null,null,{"$f":"DATEDIF(U2,I6,\"D\")","v":82}]
[]
[null,1,null,"SEG",null,null,null,"TER ",null,null,null,"QUA",null,null,null,"QUI",null,null,null,"SEX",null,null,null,"SÁB ",null,null,null,"DOM",null,null,null,"META SEMANAL"]
[null,null,null,"HORA",{"$f":"E6","v":"2022-02-28"},null,null,"HORA",{"$f":"E9+1","v":"2022-03-01"},null,null,"HORA",{"$f":"I9+1","v":"2022-03-02"},null,null,"HORA",{"$f":"M9+1","v":"2022-03-03"},null,null,"HORA",{"$f":"Q9+1","v":"2022-03-04"},null,null,"HORA",{"$f":"U9+1","v":"2022-03-05"},null,null,"HORA",{"$f":"Y9+1","v":"2022-03-06"},null,null,"META SEMANAL"]
[null,null,null,null,null,null,null,null,null,"01:00:00",null,null,null,null,null,null,null,null,null,null,null,null,null,null,null,null,null,null,null,null,null,{"$f":"M6","v":0.83333333333333337}]
[null,null,null,null,null,null,null,null,null,null,null,null,null,null,null,null,null,null,null,null,null,null,null,null,null,null,null,null,null,null,null,"% REALIZADO"]
[null,null,null,null,null,null,null,null,null,null,null,null,null,null,null,null,null,null,null,null,null,null,null,null,null,null,null,null,null,null,null,{"$f":"AF15/AF10","v":4.9999999999999996E-2}]
[null,null,null,null,null,null,null,null,null,null,null,null,null,null,null,null,null,null,null,null,null,null,null,null,null,null,null,null,null,null,null,"HORAS NA SEMANA"]
[null,null,null,null,null,null,null,null,null,null,null,null,null,null,null,null,null,null,null,null,null,null,null,null,null,null,null,null,null,null,null,"HORAS NA SEMANA"]
[null,null,null,null,null,{"$f":"SUM(F10:F14)","v":"00:00:00"},null,null,null,{"$f":"SUM(J10:J14)","v":"01:00:00"},null,null,null,{"$f":"SUM(N10:N14)","v":"00:00:00"},null,null,null,{"$f":"SUM(R10:R14)","v":"00:00:00"},null,null,null,{"$f":"SUM(V10:V14)","v":"00:00:00"},null,null,null,{"$f":"SUM(Z10:Z14)","v":"00:00:00"},null,null,null,{"$f":"SUM(AD10:AD14)","v":"00:00:00"},null,{"$f":"SUM(F15+J15+N15+R15+V15+Z15+AD15)","v":4.1666666666666664E-2}]
[]
[null,{"$f":"B8+1","v":2},null,"SEG",null,null,null,"TER ",null,null,null,"QUA",null,null,null,"QUI",null,null,null,"SEX",null,null,null,"SÁB ",null,null,null,"DOM",null,null,null,"META SEMANAL"]
[null,null,null,"HORA",{"$f":"AC9+1","v":"2022-03-07"},null,null,"HORA",{"$f":"E18+1","v":"2022-03-08"},null,null,"HORA",{"$f":"I18+1","v":"2022-03-09"},null,null,"HORA",{"$f":"M18+1","v":"2022-03-10"},null,null,"HORA",{"$f":"Q18+1","v":"2022-03-11"},null,null,"HORA",{"$f":"U18+1","v":"2022-03-12"},null,null,"HORA",{"$f":"Y18+1","v":"2022-03-13"},null,null,"META SEMANAL"]
[null,null,null,null,null,null,null,null,null,null,null,null,null,null,null,null,null,null,null,null,null,null,null,null,null,null,null,null,null,null,null,{"$f":"AF10","v":0.83333333333333337}]
[null,null,null,null,null,null,null,null,null,null,null,null,null,null,null,null,null,null,null,null,null,null,null,null,null,null,null,null,null,null,null,"% REALIZADO"]
[null,null,null,null,null,null,null,null,null,null,null,null,null,null,null,null,null,null,null,null,null,null,null,null,null,null,null,null,null,null,null,{"$f":"AF24/AF19","v":0}]
[null,null,null,null,null,null,null,null,null,null,null,null,null,null,null,null,null,null,null,null,null,null,null,null,null,null,null,null,null,null,null,"HORAS NA SEMANA"]
[null,null,null,null,null,null,null,null,null,null,null,null,null,null,null,null,null,null,null,null,null,null,null,null,null,null,null,null,null,null,null,"HORAS NA SEMANA"]
[null,null,null,null,null,{"$f":"SUM(F19:F23)","v":"00:00:00"},null,null,null,{"$f":"SUM(J19:J23)","v":"00:00:00"},null,null,null,{"$f":"SUM(N19:N23)","v":"00:00:00"},null,null,null,{"$f":"SUM(R19:R23)","v":"00:00:00"},null,null,null,{"$f":"SUM(V19:V23)","v":"00:00:00"},null,null,null,{"$f":"SUM(Z19:Z23)","v":"00:00:00"},null,null,null,{"$f":"SUM(AD19:AD23)","v":"00:00:00"},null,{"$f":"SUM(F24+J24+N24+R24+V24+Z24+AD24)","v":0}]
[]
[null,{"$f":"B17+1","v":3},null,"SEG",null,null,null,"TER ",null,null,null,"QUA",null,null,null,"QUI",null,null,null,"SEX",null,null,null,"SÁB ",null,null,null,"DOM",null,null,null,"META SEMANAL"]
[null,null,null,"HORA",{"$f":"AC18+1","v":"2022-03-14"},null,null,"HORA",{"$f":"E27+1","v":"2022-03-15"},null,null,"HORA",{"$f":"I27+1","v":"2022-03-16"},null,null,"HORA",{"$f":"M27+1","v":"2022-03-17"},null,null,"HORA",{"$f":"Q27+1","v":"2022-03-18"},null,null,"HORA",{"$f":"U27+1","v":"2022-03-19"},null,null,"HORA",{"$f":"Y27+1","v":"2022-03-20"},null,null,"META SEMANAL"]
[null,null,null,null,null,null,null,null,null,null,null,null,null,null,null,null,null,null,null,null,null,null,null,null,null,null,null,null,null,null,null,{"$f":"AF19","v":0.83333333333333337}]
[null,null,null,null,null,null,null,null,null,null,null,null,null,null,null,null,null,null,null,null,null,null,null,null,null,null,null,null,null,null,null,"% REALIZADO"]
[null,null,null,null,null,null,null,null,null,null,null,null,null,null,null,null,null,null,null,null,null,null,null,null,null,null,null,null,null,null,null,{"$f":"AF33/AF28","v":0}]
[null,null,null,null,null,null,null,null,null,null,null,null,null,null,null,null,null,null,null,null,null,null,null,null,null,null,null,null,null,null,null,"HORAS NA SEMANA"]
[null,null,null,null,null,null,null,null,null,null,null,null,null,null,null,null,null,null,null,null,null,null,null,null,null,null,null,null,null,null,null,"HORAS NA SEMANA"]
[null,null,null,null,null,{"$f":"SUM(F28:F32)","v":"00:00:00"},null,null,null,{"$f":"SUM(J28:J32)","v":"00:00:00"},null,null,null,{"$f":"SUM(N28:N32)","v":"00:00:00"},null,null,null,{"$f":"SUM(R28:R32)","v":"00:00:00"},null,null,null,{"$f":"SUM(V28:V32)","v":"00:00:00"},null,null,null,{"$f":"SUM(Z28:Z32)","v":"00:00:00"},null,null,null,{"$f":"SUM(AD28:AD32)","v":"00:00:00"},null,{"$f":"SUM(F33+J33+N33+R33+V33+Z33+AD33)","v":0}]
[]
[null,{"$f":"B26+1","v":4},null,"SEG",null,null,null,"TER ",null,null,null,"QUA",null,null,null,"QUI",null,null,null,"SEX",null,null,null,"SÁB ",null,null,null,"DOM",null,null,null,"META SEMANAL"]
[null,null,null,"HORA",{"$f":"AC27+1","v":"2022-03-21"},null,null,"HORA",{"$f":"E36+1","v":"2022-03-22"},null,null,"HORA",{"$f":"I36+1","v":"2022-03-23"},null,null,"HORA",{"$f":"M36+1","v":"2022-03-24"},null,null,"HORA",{"$f":"Q36+1","v":"2022-03-25"},null,null,"HORA",{"$f":"U36+1","v":"2022-03-26"},null,null,"HORA",{"$f":"Y36+1","v":"2022-03-27"},null,null,"META SEMANAL"]
[null,null,null,null,null,null,null,null,null,null,null,null,null,null,null,null,null,null,null,null,null,null,null,null,null,null,null,null,null,null,null,{"$f":"AF28","v":0.83333333333333337}]
[null,null,null,null,null,null,null,null,null,null,null,null,null,null,null,null,null,null,null,null,null,null,null,null,null,null,null,null,null,null,null,"% REALIZADO"]
[null,null,null,null,null,null,null,null,null,null,null,null,null,null,null,null,null,null,null,null,null,null,null,null,null,null,null,null,null,null,null,{"$f":"AF42/AF37","v":0}]
[null,null,null,null,null,null,null,null,null,null,null,null,null,null,null,null,null,null,null,null,null,null,null,null,null,null,null,null,null,null,null,"HORAS NA SEMANA"]
[null,null,null,null,null,null,null,null,null,null,null,null,null,null,null,null,null,null,null,null,null,null,null,null,null,null,null,null,null,null,null,"HORAS NA SEMANA"]
[null,null,null,null,null,{"$f":"SUM(F37:F41)","v":"00:00:00"},null,null,null,{"$f":"SUM(J37:J41)","v":"00:00:00"},null,null,null,{"$f":"SUM(N37:N41)","v":"00:00:00"},null,null,null,{"$f":"SUM(R37:R41)","v":"00:00:00"},null,null,null,{"$f":"SUM(V37:V41)","v":"00:00:00"},null,null,null,{"$f":"SUM(Z37:Z41)","v":"00:00:00"},null,null,null,{"$f":"SUM(AD37:AD41)","v":"00:00:00"},null,{"$f":"SUM(F42+J42+N42+R42+V42+Z42+AD42)","v":0}]
[]
[null,{"$f":"B35+1","v":5},null,"SEG",null,null,null,"TER ",null,null,null,"QUA",null,null,null,"QUI",null,null,null,"SEX",null,null,null,"SÁB ",null,null,null,"DOM",null,null,null,"META SEMANAL"]
[null,null,null,"HORA",{"$f":"AC36+1","v":"2022-03-28"},null,null,"HORA",{"$f":"E45+1","v":"2022-03-29"},null,null,"HORA",{"$f":"I45+1","v":"2022-03-30"},null,null,"HORA",{"$f":"M45+1","v":"2022-03-31"},null,null,"HORA",{"$f":"Q45+1","v":"2022-04-01"},null,null,"HORA",{"$f":"U45+1","v":"2022-04-02"},null,null,"HORA",{"$f":"Y45+1","v":"2022-04-03"},null,null,"META SEMANAL"]
[null,null,null,null,null,null,null,null,null,null,null,null,null,null,null,null,null,null,null,null,null,null,null,null,null,null,null,null,null,null,null,{"$f":"AF37","v":0.83333333333333337}]
[null,null,null,null,null,null,null,null,null,null,null,null,null,null,null,null,null,null,null,null,null,null,null,null,null,null,null,null,null,null,null,"% REALIZADO"]
[null,null,null,null,null,null,null,null,null,null,null,null,null,null,null,null,null,null,null,null,null,null,null,null,null,null,null,null,null,null,null,{"$f":"AF51/AF46","v":0}]
[null,null,null,null,null,null,null,null,null,null,null,null,null,null,null,null,null,null,null,null,null,null,null,null,null,null,null,null,null,null,null,"HORAS NA SEMANA"]
[null,null,null,null,null,null,null,null,null,null,null,null,null,null,null,null,null,null,null,null,null,null,null,null,null,null,null,null,null,null,null,"HORAS NA SEMANA"]
[null,null,null,null,null,{"$f":"SUM(F46:F50)","v":"00:00:00"},null,null,null,{"$f":"SUM(J46:J50)","v":"00:00:00"},null,null,null,{"$f":"SUM(N46:N50)","v":"00:00:00"},null,null,null,{"$f":"SUM(R46:R50)","v":"00:00:00"},null,null,null,{"$f":"SUM(V46:V50)","v":"00:00:00"},null,null,null,{"$f":"SUM(Z46:Z50)","v":"00:00:00"},null,null,null,{"$f":"SUM(AD46:AD50)","v":"00:00:00"},null,{"$f":"SUM(F51+J51+N51+R51+V51+Z51+AD51)","v":0}]
[]
[null,{"$f":"B44+1","v":6},null,"SEG",null,null,null,"TER ",null,null,null,"QUA",null,null,null,"QUI",null,null,null,"SEX",null,null,null,"SÁB ",null,null,null,"DOM",null,null,null,"META SEMANAL"]
[null,null,null,"HORA",{"$f":"AC45+1","v":"2022-04-04"},null,null,"HORA",{"$f":"E54+1","v":"2022-04-05"},null,null,"HORA",{"$f":"I54+1","v":"2022-04-06"},null,null,"HORA",{"$f":"M54+1","v":"2022-04-07"},null,null,"HORA",{"$f":"Q54+1","v":"2022-04-08"},null,null,"HORA",{"$f":"U54+1","v":"2022-04-09"},null,null,"HORA",{"$f":"Y54+1","v":"2022-04-10"},null,null,"META SEMANAL"]
[null,null,null,null,null,null,null,null,null,null,null,null,null,null,null,null,null,null,null,null,null,null,null,null,null,null,null,null,null,null,null,{"$f":"AF46","v":0.83333333333333337}]
[null,null,null,null,null,null,null,null,null,null,null,null,null,null,null,null,null,null,null,null,null,null,null,null,null,null,null,null,null,null,null,"% REALIZADO"]
[null,null,null,null,null,null,null,null,null,null,null,null,null,null,null,null,null,null,null,null,null,null,null,null,null,null,null,null,null,null,null,{"$f":"AF60/AF55","v":0}]
[null,null,null,null,null,null,null,null,null,null,null,null,null,null,null,null,null,null,null,null,null,null,null,null,null,null,null,null,null,null,null,"HORAS NA SEMANA"]
[null,null,null,null,null,null,null,null,null,null,null,null,null,null,null,null,null,null,null,null,null,null,null,null,null,null,null,null,null,null,null,"HORAS NA SEMANA"]
[null,null,null,null,null,{"$f":"SUM(F55:F59)","v":"00:00:00"},null,null,null,{"$f":"SUM(J55:J59)","v":"00:00:00"},null,null,null,{"$f":"SUM(N55:N59)","v":"00:00:00"},null,null,null,{"$f":"SUM(R55:R59)","v":"00:00:00"},null,null,null,{"$f":"SUM(V55:V59)","v":"00:00:00"},null,null,null,{"$f":"SUM(Z55:Z59)","v":"00:00:00"},null,null,null,{"$f":"SUM(AD55:AD59)","v":"00:00:00"},null,{"$f":"SUM(F60+J60+N60+R60+V60+Z60+AD60)","v":0}]
[]
[null,{"$f":"B53+1","v":7},null,"SEG",null,null,null,"TER ",null,null,null,"QUA",null,null,null,"QUI",null,null,null,"SEX",null,null,null,"SÁB ",null,null,null,"DOM",null,null,null,"META SEMANAL"]
[null,null,null,"HORA",{"$f":"AC54+1","v":"2022-04-11"},null,null,"HORA",{"$f":"E63+1","v":"2022-04-12"},null,null,"HORA",{"$f":"I63+1","v":"2022-04-13"},null,null,"HORA",{"$f":"M63+1","v":"2022-04-14"},null,null,"HORA",{"$f":"Q63+1","v":"2022-04-15"},null,null,"HORA",{"$f":"U63+1","v":"2022-04-16"},null,null,"HORA",{"$f":"Y63+1","v":"2022-04-17"},null,null,"META SEMANAL"]
[null,null,null,null,null,null,null,null,null,null,null,null,null,null,null,null,null,null,null,null,null,null,null,null,null,null,null,null,null,null,null,{"$f":"AF55","v":0.83333333333333337}]
[null,null,null,null,null,null,null,null,null,null,null,null,null,null,null,null,null,null,null,null,null,null,null,null,null,null,null,null,null,null,null,"% REALIZADO"]
[null,null,null,null,null,null,null,null,null,null,null,null,null,null,null,null,null,null,null,null,null,null,null,null,null,null,null,null,null,null,null,{"$f":"AF69/AF64","v":0}]
[null,null,null,null,null,null,null,null,null,null,null,null,null,null,null,null,null,null,null,null,null,null,null,null,null,null,null,null,null,null,null,"HORAS NA SEMANA"]
[null,null,null,null,null,null,null,null,null,null,null,null,null,null,null,null,null,null,null,null,null,null,null,null,null,null,null,null,null,null,null,"HORAS NA SEMANA"]
[null,null,null,null,null,{"$f":"SUM(F64:F68)","v":"00:00:00"},null,null,null,{"$f":"SUM(J64:J68)","v":"00:00:00"},null,null,null,{"$f":"SUM(N64:N68)","v":"00:00:00"},null,null,null,{"$f":"SUM(R64:R68)","v":"00:00:00"},null,null,null,{"$f":"SUM(V64:V68)","v":"00:00:00"},null,null,null,{"$f":"SUM(Z64:Z68)","v":"00:00:00"},null,null,null,{"$f":"SUM(AD64:AD68)","v":"00:00:00"},null,{"$f":"SUM(F69+J69+N69+R69+V69+Z69+AD69)","v":0}]
[]
[null,{"$f":"B62+1","v":8},null,"SEG",null,null,null,"TER ",null,null,null,"QUA",null,null,null,"QUI",null,null,null,"SEX",null,null,null,"SÁB ",null,null,null,"DOM",null,null,null,"META SEMANAL"]
[null,null,null,"HORA",{"$f":"AC63+1","v":"2022-04-18"},null,null,"HORA",{"$f":"E72+1","v":"2022-04-19"},null,null,"HORA",{"$f":"I72+1","v":"2022-04-20"},null,null,"HORA",{"$f":"M72+1","v":"2022-04-21"},null,null,"HORA",{"$f":"Q72+1","v":"2022-04-22"},null,null,"HORA",{"$f":"U72+1","v":"2022-04-23"},null,null,"HORA",{"$f":"Y72+1","v":"2022-04-24"},null,null,"META SEMANAL"]
[null,null,null,null,null,null,null,null,null,null,null,null,null,null,null,null,null,null,null,null,null,null,null,null,null,null,null,null,null,null,null,{"$f":"AF64","v":0.83333333333333337}]
[null,null,null,null,null,null,null,null,null,null,null,null,null,null,null,null,null,null,null,null,null,null,null,null,null,null,null,null,null,null,null,"% REALIZADO"]
[null,null,null,null,null,null,null,null,null,null,null,null,null,null,null,null,null,null,null,null,null,null,null,null,null,null,null,null,null,null,null,{"$f":"AF78/AF73","v":0}]
[null,null,null,null,null,null,null,null,null,null,null,null,null,null,null,null,null,null,null,null,null,null,null,null,null,null,null,null,null,null,null,"HORAS NA SEMANA"]
[null,null,null,null,null,null,null,null,null,null,null,null,null,null,null,null,null,null,null,null,null,null,null,null,null,null,null,null,null,null,null,"HORAS NA SEMANA"]
[null,null,null,null,null,{"$f":"SUM(F73:F77)","v":"00:00:00"},null,null,null,{"$f":"SUM(J73:J77)","v":"00:00:00"},null,null,null,{"$f":"SUM(N73:N77)","v":"00:00:00"},null,null,null,{"$f":"SUM(R73:R77)","v":"00:00:00"},null,null,null,{"$f":"SUM(V73:V77)","v":"00:00:00"},null,null,null,{"$f":"SUM(Z73:Z77)","v":"00:00:00"},null,null,null,{"$f":"SUM(AD73:AD77)","v":"00:00:00"},null,{"$f":"SUM(F78+J78+N78+R78+V78+Z78+AD78)","v":0}]
[]
[null,{"$f":"B71+1","v":9},null,"SEG",null,null,null,"TER ",null,null,null,"QUA",null,null,null,"QUI",null,null,null,"SEX",null,null,null,"SÁB ",null,null,null,"DOM",null,null,null,"META SEMANAL"]
[null,null,null,"HORA",{"$f":"AC72+1","v":"2022-04-25"},null,null,"HORA",{"$f":"E81+1","v":"2022-04-26"},null,null,"HORA",{"$f":"I81+1","v":"2022-04-27"},null,null,"HORA",{"$f":"M81+1","v":"2022-04-28"},null,null,"HORA",{"$f":"Q81+1","v":"2022-04-29"},null,null,"HORA",{"$f":"U81+1","v":"2022-04-30"},null,null,"HORA",{"$f":"Y81+1","v":"2022-05-01"},null,null,"META SEMANAL"]
[null,null,null,null,null,null,null,null,null,null,null,null,null,null,null,null,null,null,null,null,null,null,null,null,null,null,null,null,null,null,null,{"$f":"AF73","v":0.83333333333333337}]
[null,null,null,null,null,null,null,null,null,null,null,null,null,null,null,null,null,null,null,null,null,null,null,null,null,null,null,null,null,null,null,"% REALIZADO"]
[null,null,null,null,null,null,null,null,null,null,null,null,null,null,null,null,null,null,null,null,null,null,null,null,null,null,null,null,null,null,null,{"$f":"AF87/AF82","v":0}]
[null,null,null,null,null,null,null,null,null,null,null,null,null,null,null,null,null,null,null,null,null,null,null,null,null,null,null,null,null,null,null,"HORAS NA SEMANA"]
[null,null,null,null,null,null,null,null,null,null,null,null,null,null,null,null,null,null,null,null,null,null,null,null,null,null,null,null,null,null,null,"HORAS NA SEMANA"]
[null,null,null,null,null,{"$f":"SUM(F82:F86)","v":"00:00:00"},null,null,null,{"$f":"SUM(J82:J86)","v":"00:00:00"},null,null,null,{"$f":"SUM(N82:N86)","v":"00:00:00"},null,null,null,{"$f":"SUM(R82:R86)","v":"00:00:00"},null,null,null,{"$f":"SUM(V82:V86)","v":"00:00:00"},null,null,null,{"$f":"SUM(Z82:Z86)","v":"00:00:00"},null,null,null,{"$f":"SUM(AD82:AD86)","v":"00:00:00"},null,{"$f":"SUM(F87+J87+N87+R87+V87+Z87+AD87)","v":0}]
[]
[null,{"$f":"B80+1","v":10},null,"SEG",null,null,null,"TER ",null,null,null,"QUA",null,null,null,"QUI",null,null,null,"SEX",null,null,null,"SÁB ",null,null,null,"DOM",null,null,null,"META SEMANAL"]
[null,null,null,"HORA",{"$f":"AC81+1","v":"2022-05-02"},null,null,"HORA",{"$f":"E90+1","v":"2022-05-03"},null,null,"HORA",{"$f":"I90+1","v":"2022-05-04"},null,null,"HORA",{"$f":"M90+1","v":"2022-05-05"},null,null,"HORA",{"$f":"Q90+1","v":"2022-05-06"},null,null,"HORA",{"$f":"U90+1","v":"2022-05-07"},null,null,"HORA",{"$f":"Y90+1","v":"2022-05-08"},null,null,"META SEMANAL"]
[null,null,null,null,null,null,null,null,null,null,null,null,null,null,null,null,null,null,null,null,null,null,null,null,null,null,null,null,null,null,null,{"$f":"AF82","v":0.83333333333333337}]
[null,null,null,null,null,null,null,null,null,null,null,null,null,null,null,null,null,null,null,null,null,null,null,null,null,null,null,null,null,null,null,"% REALIZADO"]
[null,null,null,null,null,null,null,null,null,null,null,null,null,null,null,null,null,null,null,null,null,null,null,null,null,null,null,null,null,null,null,{"$f":"AF96/AF91","v":0}]
[null,null,null,null,null,null,null,null,null,null,null,null,null,null,null,null,null,null,null,null,null,null,null,null,null,null,null,null,null,null,null,"HORAS NA SEMANA"]
[null,null,null,null,null,null,null,null,null,null,null,null,null,null,null,null,null,null,null,null,null,null,null,null,null,null,null,null,null,null,null,"HORAS NA SEMANA"]
[null,null,null,null,null,{"$f":"SUM(F91:F95)","v":"00:00:00"},null,null,null,{"$f":"SUM(J91:J95)","v":"00:00:00"},null,null,null,{"$f":"SUM(N91:N95)","v":"00:00:00"},null,null,null,{"$f":"SUM(R91:R95)","v":"00:00:00"},null,null,null,{"$f":"SUM(V91:V95)","v":"00:00:00"},null,null,null,{"$f":"SUM(Z91:Z95)","v":"00:00:00"},null,null,null,{"$f":"SUM(AD91:AD95)","v":"00:00:00"},null,{"$f":"SUM(F96+J96+N96+R96+V96+Z96+AD96)","v":0}]
[]
[null,{"$f":"B89+1","v":11},null,"SEG",null,null,null,"TER ",null,null,null,"QUA",null,null,null,"QUI",null,null,null,"SEX",null,null,null,"SÁB ",null,null,null,"DOM",null,null,null,"META SEMANAL"]
[null,null,null,"HORA",{"$f":"AC90+1","v":"2022-05-09"},null,null,"HORA",{"$f":"E99+1","v":"2022-05-10"},null,null,"HORA",{"$f":"I99+1","v":"2022-05-11"},null,null,"HORA",{"$f":"M99+1","v":"2022-05-12"},null,null,"HORA",{"$f":"Q99+1","v":"2022-05-13"},null,null,"HORA",{"$f":"U99+1","v":"2022-05-14"},null,null,"HORA",{"$f":"Y99+1","v":"2022-05-15"},null,null,"META SEMANAL"]
[null,null,null,null,null,null,null,null,null,null,null,null,null,null,null,null,null,null,null,null,null,null,null,null,null,null,null,null,null,null,null,{"$f":"AF91","v":0.83333333333333337}]
[null,null,null,null,null,null,null,null,null,null,null,null,null,null,null,null,null,null,null,null,null,null,null,null,null,null,null,null,null,null,null,"% REALIZADO"]
[null,null,null,null,null,null,null,null,null,null,null,null,null,null,null,null,null,null,null,null,null,null,null,null,null,null,null,null,null,null,null,{"$f":"AF105/AF100","v":0}]
[null,null,null,null,null,null,null,null,null,null,null,null,null,null,null,null,null,null,null,null,null,null,null,null,null,null,null,null,null,null,null,"HORAS NA SEMANA"]
[null,null,null,null,null,null,null,null,null,null,null,null,null,null,null,null,null,null,null,null,null,null,null,null,null,null,null,null,null,null,null,"HORAS NA SEMANA"]
[null,null,null,null,null,{"$f":"SUM(F100:F104)","v":"00:00:00"},null,null,null,{"$f":"SUM(J100:J104)","v":"00:00:00"},null,null,null,{"$f":"SUM(N100:N104)","v":"00:00:00"},null,null,null,{"$f":"SUM(R100:R104)","v":"00:00:00"},null,null,null,{"$f":"SUM(V100:V104)","v":"00:00:00"},null,null,null,{"$f":"SUM(Z100:Z104)","v":"00:00:00"},null,null,null,{"$f":"SUM(AD100:AD104)","v":"00:00:00"},null,{"$f":"SUM(F105+J105+N105+R105+V105+Z105+AD105)","v":0}]
[]
[null,{"$f":"B98+1","v":12},null,"SEG",null,null,null,"TER ",null,null,null,"QUA",null,null,null,"QUI",null,null,null,"SEX",null,null,null,"SÁB ",null,null,null,"DOM",null,null,null,"META SEMANAL"]
[null,null,null,"HORA",{"$f":"AC99+1","v":"2022-05-16"},null,null,"HORA",{"$f":"E108+1","v":"2022-05-17"},null,null,"HORA",{"$f":"I108+1","v":"2022-05-18"},null,null,"HORA",{"$f":"M108+1","v":"2022-05-19"},null,null,"HORA",{"$f":"Q108+1","v":"2022-05-20"},null,null,"HORA",{"$f":"U108+1","v":"2022-05-21"},null,null,"HORA",{"$f":"Y108+1","v":"2022-05-22"},null,null,"META SEMANAL"]
[null,null,null,null,null,null,null,null,null,null,null,null,null,null,null,null,null,null,null,null,null,null,null,null,null,null,null,null,null,null,null,{"$f":"AF100","v":0.83333333333333337}]
[null,null,null,null,null,null,null,null,null,null,null,null,null,null,null,null,null,null,null,null,null,null,null,null,null,null,null,null,null,null,null,"% REALIZADO"]
[null,null,null,null,null,null,null,null,null,null,null,null,null,null,null,null,null,null,null,null,null,null,null,null,null,null,null,null,null,null,null,{"$f":"AF114/AF109","v":0}]
[null,null,null,null,null,null,null,null,null,null,null,null,null,null,null,null,null,null,null,null,null,null,null,null,null,null,null,null,null,null,null,"HORAS NA SEMANA"]
[null,null,null,null,null,null,null,null,null,null,null,null,null,null,null,null,null,null,null,null,null,null,null,null,null,null,null,null,null,null,null,"HORAS NA SEMANA"]
[null,null,null,null,null,{"$f":"SUM(F109:F113)","v":"00:00:00"},null,null,null,{"$f":"SUM(J109:J113)","v":"00:00:00"},null,null,null,{"$f":"SUM(N109:N113)","v":"00:00:00"},null,null,null,{"$f":"SUM(R109:R113)","v":"00:00:00"},null,null,null,{"$f":"SUM(V109:V113)","v":"00:00:00"},null,null,null,{"$f":"SUM(Z109:Z113)","v":"00:00:00"},null,null,null,{"$f":"SUM(AD109:AD113)","v":"00:00:00"},null,{"$f":"SUM(F114+J114+N114+R114+V114+Z114+AD114)","v":0}]
[]
[null,{"$f":"B107+1","v":13},null,"SEG",null,null,null,"TER ",null,null,null,"QUA",null,null,null,"QUI",null,null,null,"SEX",null,null,null,"SÁB ",null,null,null,"DOM",null,null,null,"META SEMANAL"]
[null,null,null,"HORA",{"$f":"AC108+1","v":"2022-05-23"},null,null,"HORA",{"$f":"E117+1","v":"2022-05-24"},null,null,"HORA",{"$f":"I117+1","v":"2022-05-25"},null,null,"HORA",{"$f":"M117+1","v":"2022-05-26"},null,null,"HORA",{"$f":"Q117+1","v":"2022-05-27"},null,null,"HORA",{"$f":"U117+1","v":"2022-05-28"},null,null,"HORA",{"$f":"Y117+1","v":"2022-05-29"},null,null,"META SEMANAL"]
[null,null,null,null,null,null,null,null,null,null,null,null,null,null,null,null,null,null,null,null,null,null,null,null,null,null,null,null,null,null,null,{"$f":"AF109","v":0.83333333333333337}]
[null,null,null,null,null,null,null,null,null,null,null,null,null,null,null,null,null,null,null,null,null,null,null,null,null,null,null,null,null,null,null,"% REALIZADO"]
[null,null,null,null,null,null,null,null,null,null,null,null,null,null,null,null,null,null,null,null,null,null,null,null,null,null,null,null,null,null,null,{"$f":"AF123/AF118","v":0}]
[null,null,null,null,null,null,null,null,null,null,null,null,null,null,null,null,null,null,null,null,null,null,null,null,null,null,null,null,null,null,null,"HORAS NA SEMANA"]
[null,null,null,null,null,null,null,null,null,null,null,null,null,null,null,null,null,null,null,null,null,null,null,null,null,null,null,null,null,null,null,"HORAS NA SEMANA"]
[null,null,null,null,null,{"$f":"SUM(F118:F122)","v":"00:00:00"},null,null,null,{"$f":"SUM(J118:J122)","v":"00:00:00"},null,null,null,{"$f":"SUM(N118:N122)","v":"00:00:00"},null,null,null,{"$f":"SUM(R118:R122)","v":"00:00:00"},null,null,null,{"$f":"SUM(V118:V122)","v":"00:00:00"},null,null,null,{"$f":"SUM(Z118:Z122)","v":"00:00:00"},null,null,null,{"$f":"SUM(AD118:AD122)","v":"00:00:00"},null,{"$f":"SUM(F123+J123+N123+R123+V123+Z123+AD123)","v":0}]
[]
[null,{"$f":"B116+1","v":14},null,"SEG",null,null,null,"TER ",null,null,null,"QUA",null,null,null,"QUI",null,null,null,"SEX",null,null,null,"SÁB ",null,null,null,"DOM",null,null,null,"META SEMANAL"]
[null,null,null,"HORA",{"$f":"AC117+1","v":"2022-05-30"},null,null,"HORA",{"$f":"E126+1","v":"2022-05-31"},null,null,"HORA",{"$f":"I126+1","v":"2022-06-01"},null,null,"HORA",{"$f":"M126+1","v":"2022-06-02"},null,null,"HORA",{"$f":"Q126+1","v":"2022-06-03"},null,null,"HORA",{"$f":"U126+1","v":"2022-06-04"},null,null,"HORA",{"$f":"Y126+1","v":"2022-06-05"},null,null,"META SEMANAL"]
[null,null,null,null,null,null,null,null,null,null,null,null,null,null,null,null,null,null,null,null,null,null,null,null,null,null,null,null,null,null,null,{"$f":"AF118","v":0.83333333333333337}]
[null,null,null,null,null,null,null,null,null,null,null,null,null,null,null,null,null,null,null,null,null,null,null,null,null,null,null,null,null,null,null,"% REALIZADO"]
[null,null,null,null,null,null,null,null,null,null,null,null,null,null,null,null,null,null,null,null,null,null,null,null,null,null,null,null,null,null,null,{"$f":"AF132/AF127","v":0}]
[null,null,null,null,null,null,null,null,null,null,null,null,null,null,null,null,null,null,null,null,null,null,null,null,null,null,null,null,null,null,null,"HORAS NA SEMANA"]
[null,null,null,null,null,null,null,null,null,null,null,null,null,null,null,null,null,null,null,null,null,null,null,null,null,null,null,null,null,null,null,"HORAS NA SEMANA"]
[null,null,null,null,null,{"$f":"SUM(F127:F131)","v":"00:00:00"},null,null,null,{"$f":"SUM(J127:J131)","v":"00:00:00"},null,null,null,{"$f":"SUM(N127:N131)","v":"00:00:00"},null,null,null,{"$f":"SUM(R127:R131)","v":"00:00:00"},null,null,null,{"$f":"SUM(V127:V131)","v":"00:00:00"},null,null,null,{"$f":"SUM(Z127:Z131)","v":"00:00:00"},null,null,null,{"$f":"SUM(AD127:AD131)","v":"00:00:00"},null,{"$f":"SUM(F132+J132+N132+R132+V132+Z132+AD132)","v":0}]
[]
[null,{"$f":"B125+1","v":15},null,"SEG",null,null,null,"TER ",null,null,null,"QUA",null,null,null,"QUI",null,null,null,"SEX",null,null,null,"SÁB ",null,null,null,"DOM",null,null,null,"META SEMANAL"]
[null,null,null,"HORA",{"$f":"AC126+1","v":"2022-06-06"},null,null,"HORA",{"$f":"E135+1","v":"2022-06-07"},null,null,"HORA",{"$f":"I135+1","v":"2022-06-08"},null,null,"HORA",{"$f":"M135+1","v":"2022-06-09"},null,null,"HORA",{"$f":"Q135+1","v":"2022-06-10"},null,null,"HORA",{"$f":"U135+1","v":"2022-06-11"},null,null,"HORA",{"$f":"Y135+1","v":"2022-06-12"},null,null,"META SEMANAL"]
[null,null,null,null,null,null,null,null,null,null,null,null,null,null,null,null,null,null,null,null,null,null,null,null,null,null,null,null,null,null,null,{"$f":"AF127","v":0.83333333333333337}]
[null,null,null,null,null,null,null,null,null,null,null,null,null,null,null,null,null,null,null,null,null,null,null,null,null,null,null,null,null,null,null,"% REALIZADO"]
[null,null,null,null,null,null,null,null,null,null,null,null,null,null,null,null,null,null,null,null,null,null,null,null,null,null,null,null,null,null,null,{"$f":"AF141/AF136","v":0}]
[null,null,null,null,null,null,null,null,null,null,null,null,null,null,null,null,null,null,null,null,null,null,null,null,null,null,null,null,null,null,null,"HORAS NA SEMANA"]
[null,null,null,null,null,null,null,null,null,null,null,null,null,null,null,null,null,null,null,null,null,null,null,null,null,null,null,null,null,null,null,"HORAS NA SEMANA"]
[null,null,null,null,null,{"$f":"SUM(F136:F140)","v":"00:00:00"},null,null,null,{"$f":"SUM(J136:J140)","v":"00:00:00"},null,null,null,{"$f":"SUM(N136:N140)","v":"00:00:00"},null,null,null,{"$f":"SUM(R136:R140)","v":"00:00:00"},null,null,null,{"$f":"SUM(V136:V140)","v":"00:00:00"},null,null,null,{"$f":"SUM(Z136:Z140)","v":"00:00:00"},null,null,null,{"$f":"SUM(AD136:AD140)","v":"00:00:00"},null,{"$f":"SUM(F141+J141+N141+R141+V141+Z141+AD141)","v":0}]
[]
[null,{"$f":"B134+1","v":16},null,"SEG",null,null,null,"TER ",null,null,null,"QUA",null,null,null,"QUI",null,null,null,"SEX",null,null,null,"SÁB ",null,null,null,"DOM",null,null,null,"META SEMANAL"]
[null,null,null,"HORA",{"$f":"AC135+1","v":"2022-06-13"},null,null,"HORA",{"$f":"E144+1","v":"2022-06-14"},null,null,"HORA",{"$f":"I144+1","v":"2022-06-15"},null,null,"HORA",{"$f":"M144+1","v":"2022-06-16"},null,null,"HORA",{"$f":"Q144+1","v":"2022-06-17"},null,null,"HORA",{"$f":"U144+1","v":"2022-06-18"},null,null,"HORA",{"$f":"Y144+1","v":"2022-06-19"},null,null,"META SEMANAL"]
[null,null,null,null,null,null,null,null,null,null,null,null,null,null,null,null,null,null,null,null,null,null,null,null,null,null,null,null,null,null,null,{"$f":"AF136","v":0.83333333333333337}]
[null,null,null,null,null,null,null,null,null,null,null,null,null,null,null,null,null,null,null,null,null,null,null,null,null,null,null,null,null,null,null,"% REALIZADO"]
[null,null,null,null,null,null,null,null,null,null,null,null,null,null,null,null,null,null,null,null,null,null,null,null,null,null,null,null,null,null,null,{"$f":"AF150/AF145","v":0}]
[null,null,null,null,null,null,null,null,null,null,null,null,null,null,null,null,null,null,null,null,null,null,null,null,null,null,null,null,null,null,null,"HORAS NA SEMANA"]
[null,null,null,null,null,null,null,null,null,null,null,null,null,null,null,null,null,null,null,null,null,null,null,null,null,null,null,null,null,null,null,"HORAS NA SEMANA"]
[null,null,null,null,null,{"$f":"SUM(F145:F149)","v":"00:00:00"},null,null,null,{"$f":"SUM(J145:J149)","v":"00:00:00"},null,null,null,{"$f":"SUM(N145:N149)","v":"00:00:00"},null,null,null,{"$f":"SUM(R145:R149)","v":"00:00:00"},null,null,null,{"$f":"SUM(V145:V149)","v":"00:00:00"},null,null,null,{"$f":"SUM(Z145:Z149)","v":"00:00:00"},null,null,null,{"$f":"SUM(AD145:AD149)","v":"00:00:00"},null,{"$f":"SUM(F150+J150+N150+R150+V150+Z150+AD150)","v":0}]
[]
[null,{"$f":"B143+1","v":17},null,"SEG",null,null,null,"TER ",null,null,null,"QUA",null,null,null,"QUI",null,null,null,"SEX",null,null,null,"SÁB ",null,null,null,"DOM",null,null,null,"META SEMANAL"]
[null,null,null,"HORA",{"$f":"AC144+1","v":"2022-06-20"},null,null,"HORA",{"$f":"E153+1","v":"2022-06-21"},null,null,"HORA",{"$f":"I153+1","v":"2022-06-22"},null,null,"HORA",{"$f":"M153+1","v":"2022-06-23"},null,null,"HORA",{"$f":"Q153+1","v":"2022-06-24"},null,null,"HORA",{"$f":"U153+1","v":"2022-06-25"},null,null,"HORA",{"$f":"Y153+1","v":"2022-06-26"},null,null,"META SEMANAL"]
[null,null,null,null,null,null,null,null,null,null,null,null,null,null,null,null,null,null,null,null,null,null,null,null,null,null,null,null,null,null,null,{"$f":"AF145","v":0.83333333333333337}]
[null,null,null,null,null,null,null,null,null,null,null,null,null,null,null,null,null,null,null,null,null,null,null,null,null,null,null,null,null,null,null,"% REALIZADO"]
[null,null,null,null,null,null,null,null,null,null,null,null,null,null,null,null,null,null,null,null,null,null,null,null,null,null,null,null,null,null,null,{"$f":"AF159/AF154","v":0}]
[null,null,null,null,null,null,null,null,null,null,null,null,null,null,null,null,null,null,null,null,null,null,null,null,null,null,null,null,null,null,null,"HORAS NA SEMANA"]
[null,null,null,null,null,null,null,null,null,null,null,null,null,null,null,null,null,null,null,null,null,null,null,null,null,null,null,null,null,null,null,"HORAS NA SEMANA"]
[null,null,null,null,null,{"$f":"SUM(F154:F158)","v":"00:00:00"},null,null,null,{"$f":"SUM(J154:J158)","v":"00:00:00"},null,null,null,{"$f":"SUM(N154:N158)","v":"00:00:00"},null,null,null,{"$f":"SUM(R154:R158)","v":"00:00:00"},null,null,null,{"$f":"SUM(V154:V158)","v":"00:00:00"},null,null,null,{"$f":"SUM(Z154:Z158)","v":"00:00:00"},null,null,null,{"$f":"SUM(AD154:AD158)","v":"00:00:00"},null,{"$f":"SUM(F159+J159+N159+R159+V159+Z159+AD159)","v":0}]
[]
[null,{"$f":"B152+1","v":18},null,"SEG",null,null,null,"TER ",null,null,null,"QUA",null,null,null,"QUI",null,null,null,"SEX",null,null,null,"SÁB ",null,null,null,"DOM",null,null,null,"META SEMANAL"]
[null,null,null,"HORA",{"$f":"AC153+1","v":"2022-06-27"},null,null,"HORA",{"$f":"E162+1","v":"2022-06-28"},null,null,"HORA",{"$f":"I162+1","v":"2022-06-29"},null,null,"HORA",{"$f":"M162+1","v":"2022-06-30"},null,null,"HORA",{"$f":"Q162+1","v":"2022-07-01"},null,null,"HORA",{"$f":"U162+1","v":"2022-07-02"},null,null,"HORA",{"$f":"Y162+1","v":"2022-07-03"},null,null,"META SEMANAL"]
[null,null,null,null,null,null,null,null,null,null,null,null,null,null,null,null,null,null,null,null,null,null,null,null,null,null,null,null,null,null,null,{"$f":"AF154","v":0.83333333333333337}]
[null,null,null,null,null,null,null,null,null,null,null,null,null,null,null,null,null,null,null,null,null,null,null,null,null,null,null,null,null,null,null,"% REALIZADO"]
[null,null,null,null,null,null,null,null,null,null,null,null,null,null,null,null,null,null,null,null,null,null,null,null,null,null,null,null,null,null,null,{"$f":"AF168/AF163","v":0}]
[null,null,null,null,null,null,null,null,null,null,null,null,null,null,null,null,null,null,null,null,null,null,null,null,null,null,null,null,null,null,null,"HORAS NA SEMANA"]
[null,null,null,null,null,null,null,null,null,null,null,null,null,null,null,null,null,null,null,null,null,null,null,null,null,null,null,null,null,null,null,"HORAS NA SEMANA"]
[null,null,null,null,null,{"$f":"SUM(F163:F167)","v":"00:00:00"},null,null,null,{"$f":"SUM(J163:J167)","v":"00:00:00"},null,null,null,{"$f":"SUM(N163:N167)","v":"00:00:00"},null,null,null,{"$f":"SUM(R163:R167)","v":"00:00:00"},null,null,null,{"$f":"SUM(V163:V167)","v":"00:00:00"},null,null,null,{"$f":"SUM(Z163:Z167)","v":"00:00:00"},null,null,null,{"$f":"SUM(AD163:AD167)","v":"00:00:00"},null,{"$f":"SUM(F168+J168+N168+R168+V168+Z168+AD168)","v":0}]
[]
[null,{"$f":"B161+1","v":19},null,"SEG",null,null,null,"TER ",null,null,null,"QUA",null,null,null,"QUI",null,null,null,"SEX",null,null,null,"SÁB ",null,null,null,"DOM",null,null,null,"META SEMANAL"]
[null,null,null,"HORA",{"$f":"AC162+1","v":"2022-07-04"},null,null,"HORA",{"$f":"E171+1","v":"2022-07-05"},null,null,"HORA",{"$f":"I171+1","v":"2022-07-06"},null,null,"HORA",{"$f":"M171+1","v":"2022-07-07"},null,null,"HORA",{"$f":"Q171+1","v":"2022-07-08"},null,null,"HORA",{"$f":"U171+1","v":"2022-07-09"},null,null,"HORA",{"$f":"Y171+1","v":"2022-07-10"},null,null,"META SEMANAL"]
[null,null,null,null,null,null,null,null,null,null,null,null,null,null,null,null,null,null,null,null,null,null,null,null,null,null,null,null,null,null,null,{"$f":"AF163","v":0.83333333333333337}]
[null,null,null,null,null,null,null,null,null,null,null,null,null,null,null,null,null,null,null,null,null,null,null,null,null,null,null,null,null,null,null,"% REALIZADO"]
[null,null,null,null,null,null,null,null,null,null,null,null,null,null,null,null,null,null,null,null,null,null,null,null,null,null,null,null,null,null,null,{"$f":"AF177/AF172","v":0}]
[null,null,null,null,null,null,null,null,null,null,null,null,null,null,null,null,null,null,null,null,null,null,null,null,null,null,null,null,null,null,null,"HORAS NA SEMANA"]
[null,null,null,null,null,null,null,null,null,null,null,null,null,null,null,null,null,null,null,null,null,null,null,null,null,null,null,null,null,null,null,"HORAS NA SEMANA"]
[null,null,null,null,null,{"$f":"SUM(F172:F176)","v":"00:00:00"},null,null,null,{"$f":"SUM(J172:J176)","v":"00:00:00"},null,null,null,{"$f":"SUM(N172:N176)","v":"00:00:00"},null,null,null,{"$f":"SUM(R172:R176)","v":"00:00:00"},null,null,null,{"$f":"SUM(V172:V176)","v":"00:00:00"},null,null,null,{"$f":"SUM(Z172:Z176)","v":"00:00:00"},null,null,null,{"$f":"SUM(AD172:AD176)","v":"00:00:00"},null,{"$f":"SUM(F177+J177+N177+R177+V177+Z177+AD177)","v":0}]
[]
[null,{"$f":"B170+1","v":20},null,"SEG",null,null,null,"TER ",null,null,null,"QUA",null,null,null,"QUI",null,null,null,"SEX",null,null,null,"SÁB ",null,null,null,"DOM",null,null,null,"META SEMANAL"]
[null,null,null,"HORA",{"$f":"AC171+1","v":"2022-07-11"},null,null,"HORA",{"$f":"E180+1","v":"2022-07-12"},null,null,"HORA",{"$f":"I180+1","v":"2022-07-13"},null,null,"HORA",{"$f":"M180+1","v":"2022-07-14"},null,null,"HORA",{"$f":"Q180+1","v":"2022-07-15"},null,null,"HORA",{"$f":"U180+1","v":"2022-07-16"},null,null,"HORA",{"$f":"Y180+1","v":"2022-07-17"},null,null,"META SEMANAL"]
[null,null,null,null,null,null,null,null,null,null,null,null,null,null,null,null,null,null,null,null,null,null,null,null,null,null,null,null,null,null,null,{"$f":"AF172","v":0.83333333333333337}]
[null,null,null,null,null,null,null,null,null,null,null,null,null,null,null,null,null,null,null,null,null,null,null,null,null,null,null,null,null,null,null,"% REALIZADO"]
[null,null,null,null,null,null,null,null,null,null,null,null,null,null,null,null,null,null,null,null,null,null,null,null,null,null,null,null,null,null,null,{"$f":"AF186/AF181","v":0}]
[null,null,null,null,null,null,null,null,null,null,null,null,null,null,null,null,null,null,null,null,null,null,null,null,null,null,null,null,null,null,null,"HORAS NA SEMANA"]
[null,null,null,null,null,null,null,null,null,null,null,null,null,null,null,null,null,null,null,null,null,null,null,null,null,null,null,null,null,null,null,"HORAS NA SEMANA"]
[null,null,null,null,null,{"$f":"SUM(F181:F185)","v":"00:00:00"},null,null,null,{"$f":"SUM(J181:J185)","v":"00:00:00"},null,null,null,{"$f":"SUM(N181:N185)","v":"00:00:00"},null,null,null,{"$f":"SUM(R181:R185)","v":"00:00:00"},null,null,null,{"$f":"SUM(V181:V185)","v":"00:00:00"},null,null,null,{"$f":"SUM(Z181:Z185)","v":"00:00:00"},null,null,null,{"$f":"SUM(AD181:AD185)","v":"00:00:00"},null,{"$f":"SUM(F186+J186+N186+R186+V186+Z186+AD186)","v":0}]
[]
[null,{"$f":"B179+1","v":21},null,"SEG",null,null,null,"TER ",null,null,null,"QUA",null,null,null,"QUI",null,null,null,"SEX",null,null,null,"SÁB ",null,null,null,"DOM",null,null,null,"META SEMANAL"]
[null,null,null,"HORA",{"$f":"AC180+1","v":"2022-07-18"},null,null,"HORA",{"$f":"E189+1","v":"2022-07-19"},null,null,"HORA",{"$f":"I189+1","v":"2022-07-20"},null,null,"HORA",{"$f":"M189+1","v":"2022-07-21"},null,null,"HORA",{"$f":"Q189+1","v":"2022-07-22"},null,null,"HORA",{"$f":"U189+1","v":"2022-07-23"},null,null,"HORA",{"$f":"Y189+1","v":"2022-07-24"},null,null,"META SEMANAL"]
[null,null,null,null,null,null,null,null,null,null,null,null,null,null,null,null,null,null,null,null,null,null,null,null,null,null,null,null,null,null,null,{"$f":"AF181","v":0.83333333333333337}]
[null,null,null,null,null,null,null,null,null,null,null,null,null,null,null,null,null,null,null,null,null,null,null,null,null,null,null,null,null,null,null,"% REALIZADO"]
[null,null,null,null,null,null,null,null,null,null,null,null,null,null,null,null,null,null,null,null,null,null,null,null,null,null,null,null,null,null,null,{"$f":"AF195/AF190","v":0}]
[null,null,null,null,null,null,null,null,null,null,null,null,null,null,null,null,null,null,null,null,null,null,null,null,null,null,null,null,null,null,null,"HORAS NA SEMANA"]
[null,null,null,null,null,null,null,null,null,null,null,null,null,null,null,null,null,null,null,null,null,null,null,null,null,null,null,null,null,null,null,"HORAS NA SEMANA"]
[null,null,null,null,null,{"$f":"SUM(F190:F194)","v":"00:00:00"},null,null,null,{"$f":"SUM(J190:J194)","v":"00:00:00"},null,null,null,{"$f":"SUM(N190:N194)","v":"00:00:00"},null,null,null,{"$f":"SUM(R190:R194)","v":"00:00:00"},null,null,null,{"$f":"SUM(V190:V194)","v":"00:00:00"},null,null,null,{"$f":"SUM(Z190:Z194)","v":"00:00:00"},null,null,null,{"$f":"SUM(AD190:AD194)","v":"00:00:00"},null,{"$f":"SUM(F195+J195+N195+R195+V195+Z195+AD195)","v":0}]
[]
[null,{"$f":"B188+1","v":22},null,"SEG",null,null,null,"TER ",null,null,null,"QUA",null,null,null,"QUI",null,null,null,"SEX",null,null,null,"SÁB ",null,null,null,"DOM",null,null,null,"META SEMANAL"]
[null,null,null,"HORA",{"$f":"AC189+1","v":"2022-07-25"},null,null,"HORA",{"$f":"E198+1","v":"2022-07-26"},null,null,"HORA",{"$f":"I198+1","v":"2022-07-27"},null,null,"HORA",{"$f":"M198+1","v":"2022-07-28"},null,null,"HORA",{"$f":"Q198+1","v":"2022-07-29"},null,null,"HORA",{"$f":"U198+1","v":"2022-07-30"},null,null,"HORA",{"$f":"Y198+1","v":"2022-07-31"},null,null,"META SEMANAL"]
[null,null,null,null,null,null,null,null,null,null,null,null,null,null,null,null,null,null,null,null,null,null,null,null,null,null,null,null,null,null,null,{"$f":"AF190","v":0.83333333333333337}]
[null,null,null,null,null,null,null,null,null,null,null,null,null,null,null,null,null,null,null,null,null,null,null,null,null,null,null,null,null,null,null,"% REALIZADO"]
[null,null,null,null,null,null,null,null,null,null,null,null,null,null,null,null,null,null,null,null,null,null,null,null,null,null,null,null,null,null,null,{"$f":"AF204/AF199","v":0}]
[null,null,null,null,null,null,null,null,null,null,null,null,null,null,null,null,null,null,null,null,null,null,null,null,null,null,null,null,null,null,null,"HORAS NA SEMANA"]
[null,null,null,null,null,null,null,null,null,null,null,null,null,null,null,null,null,null,null,null,null,null,null,null,null,null,null,null,null,null,null,"HORAS NA SEMANA"]
[null,null,null,null,null,{"$f":"SUM(F199:F203)","v":"00:00:00"},null,null,null,{"$f":"SUM(J199:J203)","v":"00:00:00"},null,null,null,{"$f":"SUM(N199:N203)","v":"00:00:00"},null,null,null,{"$f":"SUM(R199:R203)","v":"00:00:00"},null,null,null,{"$f":"SUM(V199:V203)","v":"00:00:00"},null,null,null,{"$f":"SUM(Z199:Z203)","v":"00:00:00"},null,null,null,{"$f":"SUM(AD199:AD203)","v":"00:00:00"},null,{"$f":"SUM(F204+J204+N204+R204+V204+Z204+AD204)","v":0}]
[]
[null,{"$f":"B197+1","v":23},null,"SEG",null,null,null,"TER ",null,null,null,"QUA",null,null,null,"QUI",null,null,null,"SEX",null,null,null,"SÁB ",null,null,null,"DOM",null,null,null,"META SEMANAL"]
[null,null,null,"HORA",{"$f":"AC198+1","v":"2022-08-01"},null,null,"HORA",{"$f":"E207+1","v":"2022-08-02"},null,null,"HORA",{"$f":"I207+1","v":"2022-08-03"},null,null,"HORA",{"$f":"M207+1","v":"2022-08-04"},null,null,"HORA",{"$f":"Q207+1","v":"2022-08-05"},null,null,"HORA",{"$f":"U207+1","v":"2022-08-06"},null,null,"HORA",{"$f":"Y207+1","v":"2022-08-07"},null,null,"META SEMANAL"]
[null,null,null,null,null,null,null,null,null,null,null,null,null,null,null,null,null,null,null,null,null,null,null,null,null,null,null,null,null,null,null,{"$f":"AF199","v":0.83333333333333337}]
[null,null,null,null,null,null,null,null,null,null,null,null,null,null,null,null,null,null,null,null,null,null,null,null,null,null,null,null,null,null,null,"% REALIZADO"]
[null,null,null,null,null,null,null,null,null,null,null,null,null,null,null,null,null,null,null,null,null,null,null,null,null,null,null,null,null,null,null,{"$f":"AF213/AF208","v":0}]
[null,null,null,null,null,null,null,null,null,null,null,null,null,null,null,null,null,null,null,null,null,null,null,null,null,null,null,null,null,null,null,"HORAS NA SEMANA"]
[null,null,null,null,null,null,null,null,null,null,null,null,null,null,null,null,null,null,null,null,null,null,null,null,null,null,null,null,null,null,null,"HORAS NA SEMANA"]
[null,null,null,null,null,{"$f":"SUM(F208:F212)","v":"00:00:00"},null,null,null,{"$f":"SUM(J208:J212)","v":"00:00:00"},null,null,null,{"$f":"SUM(N208:N212)","v":"00:00:00"},null,null,null,{"$f":"SUM(R208:R212)","v":"00:00:00"},null,null,null,{"$f":"SUM(V208:V212)","v":"00:00:00"},null,null,null,{"$f":"SUM(Z208:Z212)","v":"00:00:00"},null,null,null,{"$f":"SUM(AD208:AD212)","v":"00:00:00"},null,{"$f":"SUM(F213+J213+N213+R213+V213+Z213+AD213)","v":0}]
[]
[null,{"$f":"B206+1","v":24},null,"SEG",null,null,null,"TER ",null,null,null,"QUA",null,null,null,"QUI",null,null,null,"SEX",null,null,null,"SÁB ",null,null,null,"DOM",null,null,null,"META SEMANAL"]
[null,null,null,"HORA",{"$f":"AC207+1","v":"2022-08-08"},null,null,"HORA",{"$f":"E216+1","v":"2022-08-09"},null,null,"HORA",{"$f":"I216+1","v":"2022-08-10"},null,null,"HORA",{"$f":"M216+1","v":"2022-08-11"},null,null,"HORA",{"$f":"Q216+1","v":"2022-08-12"},null,null,"HORA",{"$f":"U216+1","v":"2022-08-13"},null,null,"HORA",{"$f":"Y216+1","v":"2022-08-14"},null,null,"META SEMANAL"]
[null,null,null,null,null,null,null,null,null,null,null,null,null,null,null,null,null,null,null,null,null,null,null,null,null,null,null,null,null,null,null,{"$f":"AF208","v":0.83333333333333337}]
[null,null,null,null,null,null,null,null,null,null,null,null,null,null,null,null,null,null,null,null,null,null,null,null,null,null,null,null,null,null,null,"% REALIZADO"]
[null,null,null,null,null,null,null,null,null,null,null,null,null,null,null,null,null,null,null,null,null,null,null,null,null,null,null,null,null,null,null,{"$f":"AF222/AF217","v":0}]
[null,null,null,null,null,null,null,null,null,null,null,null,null,null,null,null,null,null,null,null,null,null,null,null,null,null,null,null,null,null,null,"HORAS NA SEMANA"]
[null,null,null,null,null,null,null,null,null,null,null,null,null,null,null,null,null,null,null,null,null,null,null,null,null,null,null,null,null,null,null,"HORAS NA SEMANA"]
[null,null,null,null,null,{"$f":"SUM(F217:F221)","v":"00:00:00"},null,null,null,{"$f":"SUM(J217:J221)","v":"00:00:00"},null,null,null,{"$f":"SUM(N217:N221)","v":"00:00:00"},null,null,null,{"$f":"SUM(R217:R221)","v":"00:00:00"},null,null,null,{"$f":"SUM(V217:V221)","v":"00:00:00"},null,null,null,{"$f":"SUM(Z217:Z221)","v":"00:00:00"},null,null,null,{"$f":"SUM(AD217:AD221)","v":"00:00:00"},null,{"$f":"SUM(F222+J222+N222+R222+V222+Z222+AD222)","v":0}]
[]
[null,{"$f":"B215+1","v":25},null,"SEG",null,null,null,"TER ",null,null,null,"QUA",null,null,null,"QUI",null,null,null,"SEX",null,null,null,"SÁB ",null,null,null,"DOM",null,null,null,"META SEMANAL"]
[null,null,null,"HORA",{"$f":"AC216+1","v":"2022-08-15"},null,null,"HORA",{"$f":"E225+1","v":"2022-08-16"},null,null,"HORA",{"$f":"I225+1","v":"2022-08-17"},null,null,"HORA",{"$f":"M225+1","v":"2022-08-18"},null,null,"HORA",{"$f":"Q225+1","v":"2022-08-19"},null,null,"HORA",{"$f":"U225+1","v":"2022-08-20"},null,null,"HORA",{"$f":"Y225+1","v":"2022-08-21"},null,null,"META SEMANAL"]
[null,null,null,null,null,null,null,null,null,null,null,null,null,null,null,null,null,null,null,null,null,null,null,null,null,null,null,null,null,null,null,{"$f":"AF217","v":0.83333333333333337}]
[null,null,null,null,null,null,null,null,null,null,null,null,null,null,null,null,null,null,null,null,null,null,null,null,null,null,null,null,null,null,null,"% REALIZADO"]
[null,null,null,null,null,null,null,null,null,null,null,null,null,null,null,null,null,null,null,null,null,null,null,null,null,null,null,null,null,null,null,{"$f":"AF231/AF226","v":0}]
[null,null,null,null,null,null,null,null,null,null,null,null,null,null,null,null,null,null,null,null,null,null,null,null,null,null,null,null,null,null,null,"HORAS NA SEMANA"]
[null,null,null,null,null,null,null,null,null,null,null,null,null,null,null,null,null,null,null,null,null,null,null,null,null,null,null,null,null,null,null,"HORAS NA SEMANA"]
[null,null,null,null,null,{"$f":"SUM(F226:F230)","v":"00:00:00"},null,null,null,{"$f":"SUM(J226:J230)","v":"00:00:00"},null,null,null,{"$f":"SUM(N226:N230)","v":"00:00:00"},null,null,null,{"$f":"SUM(R226:R230)","v":"00:00:00"},null,null,null,{"$f":"SUM(V226:V230)","v":"00:00:00"},null,null,null,{"$f":"SUM(Z226:Z230)","v":"00:00:00"},null,null,null,{"$f":"SUM(AD226:AD230)","v":"00:00:00"},null,{"$f":"SUM(F231+J231+N231+R231+V231+Z231+AD231)","v":0}]
[]
[null,{"$f":"B224+1","v":26},null,"SEG",null,null,null,"TER ",null,null,null,"QUA",null,null,null,"QUI",null,null,null,"SEX",null,null,null,"SÁB ",null,null,null,"DOM",null,null,null,"META SEMANAL"]
[null,null,null,"HORA",{"$f":"AC225+1","v":"2022-08-22"},null,null,"HORA",{"$f":"E234+1","v":"2022-08-23"},null,null,"HORA",{"$f":"I234+1","v":"2022-08-24"},null,null,"HORA",{"$f":"M234+1","v":"2022-08-25"},null,null,"HORA",{"$f":"Q234+1","v":"2022-08-26"},null,null,"HORA",{"$f":"U234+1","v":"2022-08-27"},null,null,"HORA",{"$f":"Y234+1","v":"2022-08-28"},null,null,"META SEMANAL"]
[null,null,null,null,null,null,null,null,null,null,null,null,null,null,null,null,null,null,null,null,null,null,null,null,null,null,null,null,null,null,null,{"$f":"AF226","v":0.83333333333333337}]
[null,null,null,null,null,null,null,null,null,null,null,null,null,null,null,null,null,null,null,null,null,null,null,null,null,null,null,null,null,null,null,"% REALIZADO"]
[null,null,null,null,null,null,null,null,null,null,null,null,null,null,null,null,null,null,null,null,null,null,null,null,null,null,null,null,null,null,null,{"$f":"AF240/AF235","v":0}]
[null,null,null,null,null,null,null,null,null,null,null,null,null,null,null,null,null,null,null,null,null,null,null,null,null,null,null,null,null,null,null,"HORAS NA SEMANA"]
[null,null,null,null,null,null,null,null,null,null,null,null,null,null,null,null,null,null,null,null,null,null,null,null,null,null,null,null,null,null,null,"HORAS NA SEMANA"]
[null,null,null,null,null,{"$f":"SUM(F235:F239)","v":"00:00:00"},null,null,null,{"$f":"SUM(J235:J239)","v":"00:00:00"},null,null,null,{"$f":"SUM(N235:N239)","v":"00:00:00"},null,null,null,{"$f":"SUM(R235:R239)","v":"00:00:00"},null,null,null,{"$f":"SUM(V235:V239)","v":"00:00:00"},null,null,null,{"$f":"SUM(Z235:Z239)","v":"00:00:00"},null,null,null,{"$f":"SUM(AD235:AD239)","v":"00:00:00"},null,{"$f":"SUM(F240+J240+N240+R240+V240+Z240+AD240)","v":0}]
[]
[null,{"$f":"B233+1","v":27},null,"SEG",null,null,null,"TER ",null,null,null,"QUA",null,null,null,"QUI",null,null,null,"SEX",null,null,null,"SÁB ",null,null,null,"DOM",null,null,null,"META SEMANAL"]
[null,null,null,"HORA",{"$f":"AC234+1","v":"2022-08-29"},null,null,"HORA",{"$f":"E243+1","v":"2022-08-30"},null,null,"HORA",{"$f":"I243+1","v":"2022-08-31"},null,null,"HORA",{"$f":"M243+1","v":"2022-09-01"},null,null,"HORA",{"$f":"Q243+1","v":"2022-09-02"},null,null,"HORA",{"$f":"U243+1","v":"2022-09-03"},null,null,"HORA",{"$f":"Y243+1","v":"2022-09-04"},null,null,"META SEMANAL"]
[null,null,null,null,null,null,null,null,null,null,null,null,null,null,null,null,null,null,null,null,null,null,null,null,null,null,null,null,null,null,null,{"$f":"AF235","v":0.83333333333333337}]
[null,null,null,null,null,null,null,null,null,null,null,null,null,null,null,null,null,null,null,null,null,null,null,null,null,null,null,null,null,null,null,"% REALIZADO"]
[null,null,null,null,null,null,null,null,null,null,null,null,null,null,null,null,null,null,null,null,null,null,null,null,null,null,null,null,null,null,null,{"$f":"AF249/AF244","v":0}]
[null,null,null,null,null,null,null,null,null,null,null,null,null,null,null,null,null,null,null,null,null,null,null,null,null,null,null,null,null,null,null,"HORAS NA SEMANA"]
[null,null,null,null,null,null,null,null,null,null,null,null,null,null,null,null,null,null,null,null,null,null,null,null,null,null,null,null,null,null,null,"HORAS NA SEMANA"]
[null,null,null,null,null,{"$f":"SUM(F244:F248)","v":"00:00:00"},null,null,null,{"$f":"SUM(J244:J248)","v":"00:00:00"},null,null,null,{"$f":"SUM(N244:N248)","v":"00:00:00"},null,null,null,{"$f":"SUM(R244:R248)","v":"00:00:00"},null,null,null,{"$f":"SUM(V244:V248)","v":"00:00:00"},null,null,null,{"$f":"SUM(Z244:Z248)","v":"00:00:00"},null,null,null,{"$f":"SUM(AD244:AD248)","v":"00:00:00"},null,{"$f":"SUM(F249+J249+N249+R249+V249+Z249+AD249)","v":0}]
[]
[null,{"$f":"B242+1","v":28},null,"SEG",null,null,null,"TER ",null,null,null,"QUA",null,null,null,"QUI",null,null,null,"SEX",null,null,null,"SÁB ",null,null,null,"DOM",null,null,null,"META SEMANAL"]
[null,null,null,"HORA",{"$f":"AC243+1","v":"2022-09-05"},null,null,"HORA",{"$f":"E252+1","v":"2022-09-06"},null,null,"HORA",{"$f":"I252+1","v":"2022-09-07"},null,null,"HORA",{"$f":"M252+1","v":"2022-09-08"},null,null,"HORA",{"$f":"Q252+1","v":"2022-09-09"},null,null,"HORA",{"$f":"U252+1","v":"2022-09-10"},null,null,"HORA",{"$f":"Y252+1","v":"2022-09-11"},null,null,"META SEMANAL"]
[null,null,null,null,null,null,null,null,null,null,null,null,null,null,null,null,null,null,null,null,null,null,null,null,null,null,null,null,null,null,null,{"$f":"AF244","v":0.83333333333333337}]
[null,null,null,null,null,null,null,null,null,null,null,null,null,null,null,null,null,null,null,null,null,null,null,null,null,null,null,null,null,null,null,"% REALIZADO"]
[null,null,null,null,null,null,null,null,null,null,null,null,null,null,null,null,null,null,null,null,null,null,null,null,null,null,null,null,null,null,null,{"$f":"AF258/AF253","v":0}]
[null,null,null,null,null,null,null,null,null,null,null,null,null,null,null,null,null,null,null,null,null,null,null,null,null,null,null,null,null,null,null,"HORAS NA SEMANA"]
[null,null,null,null,null,null,null,null,null,null,null,null,null,null,null,null,null,null,null,null,null,null,null,null,null,null,null,null,null,null,null,"HORAS NA SEMANA"]
[null,null,null,null,null,{"$f":"SUM(F253:F257)","v":"00:00:00"},null,null,null,{"$f":"SUM(J253:J257)","v":"00:00:00"},null,null,null,{"$f":"SUM(N253:N257)","v":"00:00:00"},null,null,null,{"$f":"SUM(R253:R257)","v":"00:00:00"},null,null,null,{"$f":"SUM(V253:V257)","v":"00:00:00"},null,null,null,{"$f":"SUM(Z253:Z257)","v":"00:00:00"},null,null,null,{"$f":"SUM(AD253:AD257)","v":"00:00:00"},null,{"$f":"SUM(F258+J258+N258+R258+V258+Z258+AD258)","v":0}]
[]
[null,{"$f":"B251+1","v":29},null,"SEG",null,null,null,"TER ",null,null,null,"QUA",null,null,null,"QUI",null,null,null,"SEX",null,null,null,"SÁB ",null,null,null,"DOM",null,null,null,"META SEMANAL"]
[null,null,null,"HORA",{"$f":"AC252+1","v":"2022-09-12"},null,null,"HORA",{"$f":"E261+1","v":"2022-09-13"},null,null,"HORA",{"$f":"I261+1","v":"2022-09-14"},null,null,"HORA",{"$f":"M261+1","v":"2022-09-15"},null,null,"HORA",{"$f":"Q261+1","v":"2022-09-16"},null,null,"HORA",{"$f":"U261+1","v":"2022-09-17"},null,null,"HORA",{"$f":"Y261+1","v":"2022-09-18"},null,null,"META SEMANAL"]
[null,null,null,null,null,null,null,null,null,null,null,null,null,null,null,null,null,null,null,null,null,null,null,null,null,null,null,null,null,null,null,{"$f":"AF253","v":0.83333333333333337}]
[null,null,null,null,null,null,null,null,null,null,null,null,null,null,null,null,null,null,null,null,null,null,null,null,null,null,null,null,null,null,null,"% REALIZADO"]
[null,null,null,null,null,null,null,null,null,null,null,null,null,null,null,null,null,null,null,null,null,null,null,null,null,null,null,null,null,null,null,{"$f":"AF267/AF262","v":0}]
[null,null,null,null,null,null,null,null,null,null,null,null,null,null,null,null,null,null,null,null,null,null,null,null,null,null,null,null,null,null,null,"HORAS NA SEMANA"]
[null,null,null,null,null,null,null,null,null,null,null,null,null,null,null,null,null,null,null,null,null,null,null,null,null,null,null,null,null,null,null,"HORAS NA SEMANA"]
[null,null,null,null,null,{"$f":"SUM(F262:F266)","v":"00:00:00"},null,null,null,{"$f":"SUM(J262:J266)","v":"00:00:00"},null,null,null,{"$f":"SUM(N262:N266)","v":"00:00:00"},null,null,null,{"$f":"SUM(R262:R266)","v":"00:00:00"},null,null,null,{"$f":"SUM(V262:V266)","v":"00:00:00"},null,null,null,{"$f":"SUM(Z262:Z266)","v":"00:00:00"},null,null,null,{"$f":"SUM(AD262:AD266)","v":"00:00:00"},null,{"$f":"SUM(F267+J267+N267+R267+V267+Z267+AD267)","v":0}]
[]
[null,{"$f":"B260+1","v":30},null,"SEG",null,null,null,"TER ",null,null,null,"QUA",null,null,null,"QUI",null,null,null,"SEX",null,null,null,"SÁB ",null,null,null,"DOM",null,null,null,"META SEMANAL"]
[null,null,null,"HORA",{"$f":"AC261+1","v":"2022-09-19"},null,null,"HORA",{"$f":"E270+1","v":"2022-09-20"},null,null,"HORA",{"$f":"I270+1","v":"2022-09-21"},null,null,"HORA",{"$f":"M270+1","v":"2022-09-22"},null,null,"HORA",{"$f":"Q270+1","v":"2022-09-23"},null,null,"HORA",{"$f":"U270+1","v":"2022-09-24"},null,null,"HORA",{"$f":"Y270+1","v":"2022-09-25"},null,null,"META SEMANAL"]
[null,null,null,null,null,null,null,null,null,null,null,null,null,null,null,null,null,null,null,null,null,null,null,null,null,null,null,null,null,null,null,{"$f":"AF262","v":0.83333333333333337}]
[null,null,null,null,null,null,null,null,null,null,null,null,null,null,null,null,null,null,null,null,null,null,null,null,null,null,null,null,null,null,null,"% REALIZADO"]
[null,null,null,null,null,null,null,null,null,null,null,null,null,null,null,null,null,null,null,null,null,null,null,null,null,null,null,null,null,null,null,{"$f":"AF276/AF271","v":0}]
[null,null,null,null,null,null,null,null,null,null,null,null,null,null,null,null,null,null,null,null,null,null,null,null,null,null,null,null,null,null,null,"HORAS NA SEMANA"]
[null,null,null,null,null,null,null,null,null,null,null,null,null,null,null,null,null,null,null,null,null,null,null,null,null,null,null,null,null,null,null,"HORAS NA SEMANA"]
[null,null,null,null,null,{"$f":"SUM(F271:F275)","v":"00:00:00"},null,null,null,{"$f":"SUM(J271:J275)","v":"00:00:00"},null,null,null,{"$f":"SUM(N271:N275)","v":"00:00:00"},null,null,null,{"$f":"SUM(R271:R275)","v":"00:00:00"},null,null,null,{"$f":"SUM(V271:V275)","v":"00:00:00"},null,null,null,{"$f":"SUM(Z271:Z275)","v":"00:00:00"},null,null,null,{"$f":"SUM(AD271:AD275)","v":"00:00:00"},null,{"$f":"SUM(F276+J276+N276+R276+V276+Z276+AD276)","v":0}]
[]
[null,{"$f":"B269+1","v":31},null,"SEG",null,null,null,"TER ",null,null,null,"QUA",null,null,null,"QUI",null,null,null,"SEX",null,null,null,"SÁB ",null,null,null,"DOM",null,null,null,"META SEMANAL"]
[null,null,null,"HORA",{"$f":"AC270+1","v":"2022-09-26"},null,null,"HORA",{"$f":"E279+1","v":"2022-09-27"},null,null,"HORA",{"$f":"I279+1","v":"2022-09-28"},null,null,"HORA",{"$f":"M279+1","v":"2022-09-29"},null,null,"HORA",{"$f":"Q279+1","v":"2022-09-30"},null,null,"HORA",{"$f":"U279+1","v":"2022-10-01"},null,null,"HORA",{"$f":"Y279+1","v":"2022-10-02"},null,null,"META SEMANAL"]
[null,null,null,null,null,null,null,null,null,null,null,null,null,null,null,null,null,null,null,null,null,null,null,null,null,null,null,null,null,null,null,{"$f":"AF271","v":0.83333333333333337}]
[null,null,null,null,null,null,null,null,null,null,null,null,null,null,null,null,null,null,null,null,null,null,null,null,null,null,null,null,null,null,null,"% REALIZADO"]
[null,null,null,null,null,null,null,null,null,null,null,null,null,null,null,null,null,null,null,null,null,null,null,null,null,null,null,null,null,null,null,{"$f":"AF285/AF280","v":0}]
[null,null,null,null,null,null,null,null,null,null,null,null,null,null,null,null,null,null,null,null,null,null,null,null,null,null,null,null,null,null,null,"HORAS NA SEMANA"]
[null,null,null,null,null,null,null,null,null,null,null,null,null,null,null,null,null,null,null,null,null,null,null,null,null,null,null,null,null,null,null,"HORAS NA SEMANA"]
[null,null,null,null,null,{"$f":"SUM(F280:F284)","v":"00:00:00"},null,null,null,{"$f":"SUM(J280:J284)","v":"00:00:00"},null,null,null,{"$f":"SUM(N280:N284)","v":"00:00:00"},null,null,null,{"$f":"SUM(R280:R284)","v":"00:00:00"},null,null,null,{"$f":"SUM(V280:V284)","v":"00:00:00"},null,null,null,{"$f":"SUM(Z280:Z284)","v":"00:00:00"},null,null,null,{"$f":"SUM(AD280:AD284)","v":"00:00:00"},null,{"$f":"SUM(F285+J285+N285+R285+V285+Z285+AD285)","v":0}]
[]
[null,{"$f":"B278+1","v":32},null,"SEG",null,null,null,"TER ",null,null,null,"QUA",null,null,null,"QUI",null,null,null,"SEX",null,null,null,"SÁB ",null,null,null,"DOM",null,null,null,"META SEMANAL"]
[null,null,null,"HORA",{"$f":"AC279+1","v":"2022-10-03"},null,null,"HORA",{"$f":"E288+1","v":"2022-10-04"},null,null,"HORA",{"$f":"I288+1","v":"2022-10-05"},null,null,"HORA",{"$f":"M288+1","v":"2022-10-06"},null,null,"HORA",{"$f":"Q288+1","v":"2022-10-07"},null,null,"HORA",{"$f":"U288+1","v":"2022-10-08"},null,null,"HORA",{"$f":"Y288+1","v":"2022-10-09"},null,null,"META SEMANAL"]
[null,null,null,null,null,null,null,null,null,null,null,null,null,null,null,null,null,null,null,null,null,null,null,null,null,null,null,null,null,null,null,{"$f":"AF280","v":0.83333333333333337}]
[null,null,null,null,null,null,null,null,null,null,null,null,null,null,null,null,null,null,null,null,null,null,null,null,null,null,null,null,null,null,null,"% REALIZADO"]
[null,null,null,null,null,null,null,null,null,null,null,null,null,null,null,null,null,null,null,null,null,null,null,null,null,null,null,null,null,null,null,{"$f":"AF294/AF289","v":0}]
[null,null,null,null,null,null,null,null,null,null,null,null,null,null,null,null,null,null,null,null,null,null,null,null,null,null,null,null,null,null,null,"HORAS NA SEMANA"]
[null,null,null,null,null,null,null,null,null,null,null,null,null,null,null,null,null,null,null,null,null,null,null,null,null,null,null,null,null,null,null,"HORAS NA SEMANA"]
[null,null,null,null,null,{"$f":"SUM(F289:F293)","v":"00:00:00"},null,null,null,{"$f":"SUM(J289:J293)","v":"00:00:00"},null,null,null,{"$f":"SUM(N289:N293)","v":"00:00:00"},null,null,null,{"$f":"SUM(R289:R293)","v":"00:00:00"},null,null,null,{"$f":"SUM(V289:V293)","v":"00:00:00"},null,null,null,{"$f":"SUM(Z289:Z293)","v":"00:00:00"},null,null,null,{"$f":"SUM(AD289:AD293)","v":"00:00:00"},null,{"$f":"SUM(F294+J294+N294+R294+V294+Z294+AD294)","v":0}]
[]
[null,{"$f":"B287+1","v":33},null,"SEG",null,null,null,"TER ",null,null,null,"QUA",null,null,null,"QUI",null,null,null,"SEX",null,null,null,"SÁB ",null,null,null,"DOM",null,null,null,"META SEMANAL"]
[null,null,null,"HORA",{"$f":"AC288+1","v":"2022-10-10"},null,null,"HORA",{"$f":"E297+1","v":"2022-10-11"},null,null,"HORA",{"$f":"I297+1","v":"2022-10-12"},null,null,"HORA",{"$f":"M297+1","v":"2022-10-13"},null,null,"HORA",{"$f":"Q297+1","v":"2022-10-14"},null,null,"HORA",{"$f":"U297+1","v":"2022-10-15"},null,null,"HORA",{"$f":"Y297+1","v":"2022-10-16"},null,null,"META SEMANAL"]
[null,null,null,null,null,null,null,null,null,null,null,null,null,null,null,null,null,null,null,null,null,null,null,null,null,null,null,null,null,null,null,{"$f":"AF289","v":0.83333333333333337}]
[null,null,null,null,null,null,null,null,null,null,null,null,null,null,null,null,null,null,null,null,null,null,null,null,null,null,null,null,null,null,null,"% REALIZADO"]
[null,null,null,null,null,null,null,null,null,null,null,null,null,null,null,null,null,null,null,null,null,null,null,null,null,null,null,null,null,null,null,{"$f":"AF303/AF298","v":0}]
[null,null,null,null,null,null,null,null,null,null,null,null,null,null,null,null,null,null,null,null,null,null,null,null,null,null,null,null,null,null,null,"HORAS NA SEMANA"]
[null,null,null,null,null,null,null,null,null,null,null,null,null,null,null,null,null,null,null,null,null,null,null,null,null,null,null,null,null,null,null,"HORAS NA SEMANA"]
[null,null,null,null,null,{"$f":"SUM(F298:F302)","v":"00:00:00"},null,null,null,{"$f":"SUM(J298:J302)","v":"00:00:00"},null,null,null,{"$f":"SUM(N298:N302)","v":"00:00:00"},null,null,null,{"$f":"SUM(R298:R302)","v":"00:00:00"},null,null,null,{"$f":"SUM(V298:V302)","v":"00:00:00"},null,null,null,{"$f":"SUM(Z298:Z302)","v":"00:00:00"},null,null,null,{"$f":"SUM(AD298:AD302)","v":"00:00:00"},null,{"$f":"SUM(F303+J303+N303+R303+V303+Z303+AD303)","v":0}]

{"sheet":"resultados","index":5,"n_rows":24,"n_cols":149,"rows_kept":24,"cut":false,"hidden":false,"merged":[[4,11,4,15],[4,18,4,22],[4,25,4,29],[4,32,4,36],[4,39,4,43],[4,46,4,50],[4,53,4,57],[4,60,4,64],[4,67,4,71],[4,74,4,78],[4,81,4,85],[4,88,4,92],[4,95,4,99],[4,102,4,106],[4,109,4,113],[4,116,4,120],[4,123,4,127],[4,130,4,134],[4,137,4,141],[4,144,4,148],[5,3,5,8],[5,10,5,15],[5,17,5,22],[5,24,5,29],[5,31,5,36],[5,38,5,43],[5,45,5,50],[5,52,5,57],[5,59,5,64],[5,66,5,71],[5,73,5,78],[5,80,5,85],[5,87,5,92],[5,94,5,99],[5,101,5,106],[5,108,5,113],[5,115,5,120],[5,122,5,127],[5,129,5,134],[5,136,5,141],[5,143,5,148],[6,4,6,5],[7,4,7,5],[8,3,9,5],[8,6,9,7],[8,10,9,12],[8,13,9,14],[8,17,9,19],[8,20,9,21],[8,24,9,26],[8,27,9,28],[8,31,9,33],[8,34,9,35],[8,38,9,40],[8,41,9,42],[8,45,9,47],[8,48,9,49],[8,52,9,54],[8,55,9,56],[8,59,9,61],[8,62,9,63],[8,66,9,68],[8,69,9,70],[8,73,9,75],[8,76,9,77],[8,80,9,82],[8,83,9,84],[8,87,9,89],[8,90,9,91],[8,94,9,96],[8,97,9,98],[8,101,9,103],[8,104,9,105],[8,108,9,110],[8,111,9,112],[8,115,9,117],[8,136,9,138],[8,139,9,140],[8,143,9,145],[8,146,9,147],[8,118,9,119],[8,122,9,124],[8,125,9,126],[8,129,9,131],[8,132,9,133]]}
[]
[]
[]
[]
[null,null,null,null,null,null,null,null,null,null,"Banca","qconcursos",null,null,null,null,null,"Banca",null,null,null,null,null,null,"Banca",null,null,null,null,null,null,"Banca",null,null,null,null,null,null,"Banca",null,null,null,null,null,null,"Banca",null,null,null,null,null,null,"Banca",null,null,null,null,null,null,"Banca",null,null,null,null,null,null,"Banca",null,null,null,null,null,null,"Banca",null,null,null,null,null,null,"Banca",null,null,null,null,null,null,"Banca",null,null,null,null,null,null,"Banca",null,null,null,null,null,null,"Banca",null,null,null,null,null,null,"Banca",null,null,null,null,null,null,"Banca",null,null,null,null,null,null,"Banca",null,null,null,null,null,null,"Banca",null,null,null,null,null,null,"Banca",null,null,null,null,null,null,"Banca"]
[null,"  Q - Nº de Questões",null,"RESULTADO GERAL",null,null,null,null,null,null,"SIMULADO 1",null,null,null,null,null,null,"SIMULADO 2",null,null,null,null,null,null,"SIMULADO 3",null,null,null,null,null,null,"SIMULADO 4",null,null,null,null,null,null,"SIMULADO 5",null,null,null,null,null,null,"SIMULADO 6",null,null,null,null,null,null,"SIMULADO 7",null,null,null,null,null,null,"SIMULADO 8",null,null,null,null,null,null,"SIMULADO 9",null,null,null,null,null,null,"SIMULADO 10",null,null,null,null,null,null,"SIMULADO 11",null,null,null,null,null,null,"SIMULADO 12",null,null,null,null,null,null,"SIMULADO 13",null,null,null,null,null,null,"SIMULADO 14",null,null,null,null,null,null,"SIMULADO 15",null,null,null,null,null,null,"SIMULADO 16",null,null,null,null,null,null,"SIMULADO 17",null,null,null,null,null,null,"SIMULADO 18",null,null,null,null,null,null,"SIMULADO 19",null,null,null,null,null,null,"SIMULADO 20"]
[null,"  C - Questões Certas",null,"Q",{"$f":"D24","v":0},null,null,null,null,null,"Q",{"$f":"K24","v":0},null,null,null,null,null,"Q",{"$f":"R24","v":0},null,null,null,null,null,"Q",{"$f":"Y24","v":0},null,null,null,null,null,"Q",{"$f":"AF24","v":0},null,null,null,null,null,"Q",{"$f":"AM24","v":0},null,null,null,null,null,"Q",{"$f":"AT24","v":0},null,null,null,null,null,"Q",{"$f":"BA24","v":0},null,null,null,null,null,"Q",{"$f":"BH24","v":0},null,null,null,null,null,"Q",{"$f":"BO24","v":0},null,null,null,null,null,"Q",{"$f":"BV24","v":0},null,null,null,null,null,"Q",{"$f":"CC24","v":0},null,null,null,null,null,"Q",{"$f":"CJ24","v":0},null,null,null,null,null,"Q",{"$f":"CQ24","v":0},null,null,null,null,null,"Q",{"$f":"CX24","v":0},null,null,null,null,null,"Q",{"$f":"DE24","v":0},null,null,null,null,null,"Q",{"$f":"DL24","v":0},null,null,null,null,null,"Q",{"$f":"DS24","v":0},null,null,null,null,null,"Q",{"$f":"DZ24","v":0},null,null,null,null,null,"Q",{"$f":"EG24","v":0},null,null,null,null,null,"Q",{"$f":"EN24","v":0}]
[null,"  B - Questões em Branco",null,"TL",{"$f":"H24","v":0},null,null,null,null,null,"TL",{"$f":"O24","v":0},null,null,null,null,null,"TL",{"$f":"V24","v":0},null,null,null,null,null,"TL",{"$f":"AC24","v":0},null,null,null,null,null,"TL",{"$f":"AJ24","v":0},null,null,null,null,null,"TL",{"$f":"AQ24","v":0},null,null,null,null,null,"TL",{"$f":"AX24","v":0},null,null,null,null,null,"TL",{"$f":"BE24","v":0},null,null,null,null,null,"TL",{"$f":"BL24","v":0},null,null,null,null,null,"TL",{"$f":"BS24","v":0},null,null,null,null,null,"TL",{"$f":"BZ24","v":0},null,null,null,null,null,"TL",{"$f":"CG24","v":0},null,null,null,null,null,"TL",{"$f":"CN24","v":0},null,null,null,null,null,"TL",{"$f":"CU24","v":0},null,null,null,null,null,"TL",{"$f":"DB24","v":0},null,null,null,null,null,"TL",{"$f":"DI24","v":0},null,null,null,null,null,"TL",{"$f":"DP24","v":0},null,null,null,null,null,"TL",{"$f":"DW24","v":0},null,null,null,null,null,"TL",{"$f":"ED24","v":0},null,null,null,null,null,"TL",{"$f":"EK24","v":0},null,null,null,null,null,"TL",{"$f":"ER24","v":0}]
[null,"  E - Questões Erradas (colocar só com a banca CESPE)",null,"% Acumulado",null,null,{"$f":"IF(E7,E8/E7,0)","v":0},null,null,null,"% Simulado 1",null,null,{"$f":"IF(L7,L8/L7,0)","v":0},null,null,null,"% Simulado 2",null,null,{"$f":"IF(S7,S8/S7,0)","v":0},null,null,null,"% Simulado 3",null,null,{"$f":"IF(Z7,Z8/Z7,0)","v":0},null,null,null,"% Simulado 4",null,null,{"$f":"IF(AG7,AG8/AG7,0)","v":0},null,null,null,"% Simulado 5",null,null,{"$f":"IF(AN7,AN8/AN7,0)","v":0},null,null,null,"% Simulado 6",null,null,{"$f":"IF(AU7,AU8/AU7,0)","v":0},null,null,null,"% Simulado 7",null,null,{"$f":"IF(BB7,BB8/BB7,0)","v":0},null,null,null,"% Simulado 8",null,null,{"$f":"IF(BI7,BI8/BI7,0)","v":0},null,null,null,"% Simulado 1",null,null,{"$f":"IF(BP7,BP8/BP7,0)","v":0},null,null,null,"% Simulado 1",null,null,{"$f":"IF(BW7,BW8/BW7,0)","v":0},null,null,null,"% Simulado 1",null,null,{"$f":"IF(CD7,CD8/CD7,0)","v":0},null,null,null,"% Simulado 12",null,null,{"$f":"IF(CK7,CK8/CK7,0)","v":0},null,null,null,"% Simulado 13",null,null,{"$f":"IF(CR7,CR8/CR7,0)","v":0},null,null,null,"% Simulado 14",null,null,{"$f":"IF(CY7,CY8/CY7,0)","v":0},null,null,null,"% Simulado 15",null,null,{"$f":"IF(DF7,DF8/DF7,0)","v":0},null,null,null,"% Simulado 16",null,null,{"$f":"IF(DM7,DM8/DM7,0)","v":0},null,null,null,"% Simulado 17",null,null,{"$f":"IF(DT7,DT8/DT7,0)","v":0},null,null,null,"% Simulado 18",null,null,{"$f":"IF(EA7,EA8/EA7,0)","v":0},null,null,null,"% Simulado 19",null,null,{"$f":"IF(EH7,EH8/EH7,0)","v":0},null,null,null,"% Simulado 20",null,null,{"$f":"IF(EO7,EO8/EO7,0)","v":0}]
[null,"  TL - Total de Pontos Líquidos"]
[]
[null,null,null,"Q","C","B","E","TL","%",null,"Q","C","B","E","TL","%",null,"Q","C","B","E","TL","%",null,"Q","C","B","E","TL","%",null,"Q","C","B","E","TL","%",null,"Q","C","B","E","TL","%",null,"Q","C","B","E","TL","%",null,"Q","C","B","E","TL","%",null,"Q","C","B","E","TL","%",null,"Q","C","B","E","TL","%",null,"Q","C","B","E","TL","%",null,"Q","C","B","E","TL","%",null,"Q","C","B","E","TL","%",null,"Q","C","B","E","TL","%",null,"Q","C","B","E","TL","%",null,"Q","C","B","E","TL","%",null,"Q","C","B","E","TL","%",null,"Q","C","B","E","TL","%",null,"Q","C","B","E","TL","%",null,"Q","C","B","E","TL","%",null,"Q","C","B","E","TL","%"]
[null,{"$f":"Concurso!D5","v":"INFORMÁTICA"},null,{"$f":"SUM(K13,R13,Y13,AF13,AM13,AT13,BA13,BH13,BO13,BV13,CC13,CJ13,CQ13,CX13,DE13,DL13,DS13,DZ13,EG13,EN13)","v":0},{"$f":"SUM(L13,S13,Z13,AG13,AN13,AU13,BB13,BI13,BP13,BW13,CD13,CK13,CR13,CY13,DF13,DM13,DT13,EA13,EH13,EO13)","v":0},{"$f":"SUM(M13,T13,AA13,AH13,AO13,AV13,BC13,BJ13,BQ13,BX13,CE13,CL13,CS13,CZ13,DG13,DN13,DU13,EB13,EI13,EP13)","v":0},{"$f":"SUM(N13,U13,AB13,AI13,AP13,AW13,BD13,BK13,BR13,BY13,CF13,CM13,CT13,DA13,DH13,DO13,DV13,EC13,EJ13,EQ13)","v":0},{"$f":"SUM(O13,V13,AC13,AJ13,AQ13,AX13,BE13,BL13,BS13,BZ13,CG13,CN13,CU13,DB13,DI13,DP13,DW13,ED13,EK13,ER13)","v":0},{"$f":"IF(D13,H13/D13,0)","v":0},null,null,null,null,null,{"$f":"L13-N13","v":0},{"$f":"IF(K13,O13/K13,0)","v":0},null,null,null,null,null,{"$f":"S13-U13","v":0},{"$f":"IF(R13,V13/R13,0)","v":0},null,null,null,null,null,{"$f":"Z13-AB13","v":0},{"$f":"IF(Y13,AC13/Y13,0)","v":0},null,null,null,null,null,{"$f":"AG13-AI13","v":0},{"$f":"IF(AF13,AJ13/AF13,0)","v":0},null,null,null,null,null,{"$f":"AN13-AP13","v":0},{"$f":"IF(AM13,AQ13/AM13,0)","v":0},null,null,null,null,null,{"$f":"AU13-AW13","v":0},{"$f":"IF(AT13,AX13/AT13,0)","v":0},null,null,null,null,null,{"$f":"BB13-BD13","v":0},{"$f":"IF(BA13,BE13/BA13,0)","v":0},null,null,null,null,null,{"$f":"BI13-BK13","v":0},{"$f":"IF(BH13,BL13/BH13,0)","v":0},null,null,null,null,null,{"$f":"BP13-BR13","v":0},{"$f":"IF(BO13,BS13/BO13,0)","v":0},null,null,null,null,null,{"$f":"BW13-BY13","v":0},{"$f":"IF(BV13,BZ13/BV13,0)","v":0},null,null,null,null,null,{"$f":"CD13-CF13","v":0},{"$f":"IF(CC13,CG13/CC13,0)","v":0},null,null,null,null,null,{"$f":"CK13-CM13","v":0},{"$f":"IF(CJ13,CN13/CJ13,0)","v":0},null,null,null,null,null,{"$f":"CR13-CT13","v":0},{"$f":"IF(CQ13,CU13/CQ13,0)","v":0},null,null,null,null,null,{"$f":"CY13-DA13","v":0},{"$f":"IF(CX13,DB13/CX13,0)","v":0},null,null,null,null,null,{"$f":"DF13-DH13","v":0},{"$f":"IF(DE13,DI13/DE13,0)","v":0},null,null,null,null,null,{"$f":"DM13-DO13","v":0},{"$f":"IF(DL13,DP13/DL13,0)","v":0},null,null,null,null,null,{"$f":"DT13-DV13","v":0},{"$f":"IF(DS13,DW13/DS13,0)","v":0},null,null,null,null,null,{"$f":"EA13-EC13","v":0},{"$f":"IF(DZ13,ED13/DZ13,0)","v":0},null,null,null,null,null,{"$f":"EH13-EJ13","v":0},{"$f":"IF(EG13,EK13/EG13,0)","v":0},null,null,null,null,null,{"$f":"EO13-EQ13","v":0},{"$f":"IF(EN13,ER13/EN13,0)","v":0}]
[null,{"$f":"Concurso!D6","v":"RAC. LÓGICO"},null,0,0,0,0,0,0,null,null,null,null,null,0,0,null,null,null,null,null,0,0,null,null,null,null,null,0,0,null,null,null,null,null,0,0,null,null,null,null,null,0,0,null,null,null,null,null,0,0,null,null,null,null,null,0,0,null,null,null,null,null,0,0,null,null,null,null,null,0,0,null,null,null,null,null,0,0,null,null,null,null,null,0,0,null,null,null,null,null,0,0,null,null,null,null,null,0,0,null,null,null,null,null,0,0,null,null,null,null,null,0,0,null,null,null,null,null,0,0,null,null,null,null,null,0,0,null,null,null,null,null,0,0,null,null,null,null,null,0,0,null,null,null,null,null,0,0]
[null,"DIR. CONSTITUCIONAL",null,0,0,0,0,0,0,null,null,null,null,null,0,0,null,null,null,null,null,0,0,null,null,null,null,null,0,0,null,null,null,null,null,0,0,null,null,null,null,null,0,0,null,null,null,null,null,0,0,null,null,null,null,null,0,0,null,null,null,null,null,0,0,null,null,null,null,null,0,0,null,null,null,null,null,0,0,null,null,null,null,null,0,0,null,null,null,null,null,0,0,null,null,null,null,null,0,0,null,null,null,null,null,0,0,null,null,null,null,null,0,0,null,null,null,null,null,0,0,null,null,null,null,null,0,0,null,null,null,null,null,0,0,null,null,null,null,null,0,0,null,null,null,null,null,0,0]
[null,"DIR. PENAL",null,0,0,0,0,0,0,null,null,null,null,null,0,0,null,null,null,null,null,0,0,null,null,null,null,null,0,0,null,null,null,null,null,0,0,null,null,null,null,null,0,0,null,null,null,null,null,0,0,null,null,null,null,null,0,0,null,null,null,null,null,0,0,null,null,null,null,null,0,0,null,null,null,null,null,0,0,null,null,null,null,null,0,0,null,null,null,null,null,0,0,null,null,null,null,null,0,0,null,null,null,null,null,0,0,null,null,null,null,null,0,0,null,null,null,null,null,0,0,null,null,null,null,null,0,0,null,null,null,null,null,0,0,null,null,null,null,null,0,0,null,null,null,null,null,0,0]
[null,"DIR. PROC. PENAL",null,0,0,0,0,0,0,null,null,null,null,null,0,0,null,null,null,null,null,0,0,null,null,null,null,null,0,0,null,null,null,null,null,0,0,null,null,null,null,null,0,0,null,null,null,null,null,0,0,null,null,null,null,null,0,0,null,null,null,null,null,0,0,null,null,null,null,null,0,0,null,null,null,null,null,0,0,null,null,null,null,null,0,0,null,null,null,null,null,0,0,null,null,null,null,null,0,0,null,null,null,null,null,0,0,null,null,null,null,null,0,0,null,null,null,null,null,0,0,null,null,null,null,null,0,0,null,null,null,null,null,0,0,null,null,null,null,null,0,0,null,null,null,null,null,0,0]
[null,"DIR. ADMINISTRATIVO",null,0,0,0,0,0,0,null,null,null,null,null,0,0,null,null,null,null,null,0,0,null,null,null,null,null,0,0,null,null,null,null,null,0,0,null,null,null,null,null,0,0,null,null,null,null,null,0,0,null,null,null,null,null,0,0,null,null,null,null,null,0,0,null,null,null,null,null,0,0,null,null,null,null,null,0,0,null,null,null,null,null,0,0,null,null,null,null,null,0,0,null,null,null,null,null,0,0,null,null,null,null,null,0,0,null,null,null,null,null,0,0,null,null,null,null,null,0,0,null,null,null,null,null,0,0,null,null,null,null,null,0,0,null,null,null,null,null,0,0,null,null,null,null,null,0,0]
[null,"DIR. HUMANOS",null,0,0,0,0,0,0,null,null,null,null,null,0,0,null,null,null,null,null,0,0,null,null,null,null,null,0,0,null,null,null,null,null,0,0,null,null,null,null,null,0,0,null,null,null,null,null,0,0,null,null,null,null,null,0,0,null,null,null,null,null,0,0,null,null,null,null,null,0,0,null,null,null,null,null,0,0,null,null,null,null,null,0,0,null,null,null,null,null,0,0,null,null,null,null,null,0,0,null,null,null,null,null,0,0,null,null,null,null,null,0,0,null,null,null,null,null,0,0,null,null,null,null,null,0,0,null,null,null,null,null,0,0,null,null,null,null,null,0,0,null,null,null,null,null,0,0]
[null,"LEGISLAÇÃO ESPECIAL",null,0,0,0,0,0,0,null,null,null,null,null,0,0,null,null,null,null,null,0,0,null,null,null,null,null,0,0,null,null,null,null,null,0,0,null,null,null,null,null,0,0,null,null,null,null,null,0,0,null,null,null,null,null,0,0,null,null,null,null,null,0,0,null,null,null,null,null,0,0,null,null,null,null,null,0,0,null,null,null,null,null,0,0,null,null,null,null,null,0,0,null,null,null,null,null,0,0,null,null,null,null,null,0,0,null,null,null,null,null,0,0,null,null,null,null,null,0,0,null,null,null,null,null,0,0,null,null,null,null,null,0,0,null,null,null,null,null,0,0,null,null,null,null,null,0,0]
[null,"CRIMINOLOGIA",null,0,0,0,0,0,0,null,null,null,null,null,0,0,null,null,null,null,null,0,0,null,null,null,null,null,0,0,null,null,null,null,null,0,0,null,null,null,null,null,0,0,null,null,null,null,null,0,0,null,null,null,null,null,0,0,null,null,null,null,null,0,0,null,null,null,null,null,0,0,null,null,null,null,null,0,0,null,null,null,null,null,0,0,null,null,null,null,null,0,0,null,null,null,null,null,0,0,null,null,null,null,null,0,0,null,null,null,null,null,0,0,null,null,null,null,null,0,0,null,null,null,null,null,0,0,null,null,null,null,null,0,0,null,null,null,null,null,0,0,null,null,null,null,null,0,0]
[null,"PORTUGUÊS",null,0,0,0,0,0,0,null,null,null,null,null,0,0,null,null,null,null,null,0,0,null,null,null,null,null,0,0,null,null,null,null,null,0,0,null,null,null,null,null,0,0,null,null,null,null,null,0,0,null,null,null,null,null,0,0,null,null,null,null,null,0,0,null,null,null,null,null,0,0,null,null,null,null,null,0,0,null,null,null,null,null,0,0,null,null,null,null,null,0,0,null,null,null,null,null,0,0,null,null,null,null,null,0,0,null,null,null,null,null,0,0,null,null,null,null,null,0,0,null,null,null,null,null,0,0,null,null,null,null,null,0,0,null,null,null,null,null,0,0,null,null,null,null,null,0,0]
[null,null,null,0,0,0,0,0,0,null,null,null,null,null,0,0,null,null,null,null,null,0,0,null,null,null,null,null,0,0,null,null,null,null,null,0,0,null,null,null,null,null,0,0,null,null,null,null,null,0,0,null,null,null,null,null,0,0,null,null,null,null,null,0,0,null,null,null,null,null,0,0,null,null,null,null,null,0,0,null,null,null,null,null,0,0,null,null,null,null,null,0,0,null,null,null,null,null,0,0,null,null,null,null,null,0,0,null,null,null,null,null,0,0,null,null,null,null,null,0,0,null,null,null,null,null,0,0,null,null,null,null,null,0,0,null,null,null,null,null,0,0,null,null,null,null,null,0,0]
[null,"TOTAL",null,{"$f":"SUM(D13:D23)","v":0},{"$f":"SUM(E13:E23)","v":0},{"$f":"SUM(F13:F23)","v":0},{"$f":"SUM(G13:G23)","v":0},{"$f":"SUM(H13:H23)","v":0},null,null,{"$f":"SUM(K13:K23)","v":0},{"$f":"SUM(L13:L23)","v":0},{"$f":"SUM(M13:M23)","v":0},{"$f":"SUM(N13:N23)","v":0},{"$f":"SUM(O13:O23)","v":0},null,null,{"$f":"SUM(R13:R23)","v":0},{"$f":"SUM(S13:S23)","v":0},{"$f":"SUM(T13:T23)","v":0},{"$f":"SUM(U13:U23)","v":0},{"$f":"SUM(V13:V23)","v":0},null,null,{"$f":"SUM(Y13:Y23)","v":0},{"$f":"SUM(Z13:Z23)","v":0},{"$f":"SUM(AA13:AA23)","v":0},{"$f":"SUM(AB13:AB23)","v":0},{"$f":"SUM(AC13:AC23)","v":0},null,null,{"$f":"SUM(AF13:AF23)","v":0},{"$f":"SUM(AG13:AG23)","v":0},{"$f":"SUM(AH13:AH23)","v":0},{"$f":"SUM(AI13:AI23)","v":0},{"$f":"SUM(AJ13:AJ23)","v":0},null,null,{"$f":"SUM(AM13:AM23)","v":0},{"$f":"SUM(AN13:AN23)","v":0},{"$f":"SUM(AO13:AO23)","v":0},{"$f":"SUM(AP13:AP23)","v":0},{"$f":"SUM(AQ13:AQ23)","v":0},null,null,{"$f":"SUM(AT13:AT23)","v":0},{"$f":"SUM(AU13:AU23)","v":0},{"$f":"SUM(AV13:AV23)","v":0},{"$f":"SUM(AW13:AW23)","v":0},{"$f":"SUM(AX13:AX23)","v":0},null,null,{"$f":"SUM(BA13:BA23)","v":0},{"$f":"SUM(BB13:BB23)","v":0},{"$f":"SUM(BC13:BC23)","v":0},{"$f":"SUM(BD13:BD23)","v":0},{"$f":"SUM(BE13:BE23)","v":0},null,null,{"$f":"SUM(BH13:BH23)","v":0},{"$f":"SUM(BI13:BI23)","v":0},{"$f":"SUM(BJ13:BJ23)","v":0},{"$f":"SUM(BK13:BK23)","v":0},{"$f":"SUM(BL13:BL23)","v":0},null,null,{"$f":"SUM(BO13:BO23)","v":0},{"$f":"SUM(BP13:BP23)","v":0},{"$f":"SUM(BQ13:BQ23)","v":0},{"$f":"SUM(BR13:BR23)","v":0},{"$f":"SUM(BS13:BS23)","v":0},null,null,{"$f":"SUM(BV13:BV23)","v":0},{"$f":"SUM(BW13:BW23)","v":0},{"$f":"SUM(BX13:BX23)","v":0},{"$f":"SUM(BY13:BY23)","v":0},{"$f":"SUM(BZ13:BZ23)","v":0},null,null,{"$f":"SUM(CC13:CC23)","v":0},{"$f":"SUM(CD13:CD23)","v":0},{"$f":"SUM(CE13:CE23)","v":0},{"$f":"SUM(CF13:CF23)","v":0},{"$f":"SUM(CG13:CG23)","v":0},null,null,{"$f":"SUM(CJ13:CJ23)","v":0},{"$f":"SUM(CK13:CK23)","v":0},{"$f":"SUM(CL13:CL23)","v":0},{"$f":"SUM(CM13:CM23)","v":0},{"$f":"SUM(CN13:CN23)","v":0},null,null,{"$f":"SUM(CQ13:CQ23)","v":0},{"$f":"SUM(CR13:CR23)","v":0},{"$f":"SUM(CS13:CS23)","v":0},{"$f":"SUM(CT13:CT23)","v":0},{"$f":"SUM(CU13:CU23)","v":0},null,null,{"$f":"SUM(CX13:CX23)","v":0},{"$f":"SUM(CY13:CY23)","v":0},{"$f":"SUM(CZ13:CZ23)","v":0},{"$f":"SUM(DA13:DA23)","v":0},{"$f":"SUM(DB13:DB23)","v":0},null,null,{"$f":"SUM(DE13:DE23)","v":0},{"$f":"SUM(DF13:DF23)","v":0},{"$f":"SUM(DG13:DG23)","v":0},{"$f":"SUM(DH13:DH23)","v":0},{"$f":"SUM(DI13:DI23)","v":0},null,null,{"$f":"SUM(DL13:DL23)","v":0},{"$f":"SUM(DM13:DM23)","v":0},{"$f":"SUM(DN13:DN23)","v":0},{"$f":"SUM(DO13:DO23)","v":0},{"$f":"SUM(DP13:DP23)","v":0},null,null,{"$f":"SUM(DS13:DS23)","v":0},{"$f":"SUM(DT13:DT23)","v":0},{"$f":"SUM(DU13:DU23)","v":0},{"$f":"SUM(DV13:DV23)","v":0},{"$f":"SUM(DW13:DW23)","v":0},null,null,{"$f":"SUM(DZ13:DZ23)","v":0},{"$f":"SUM(EA13:EA23)","v":0},{"$f":"SUM(EB13:EB23)","v":0},{"$f":"SUM(EC13:EC23)","v":0},{"$f":"SUM(ED13:ED23)","v":0},null,null,{"$f":"SUM(EG13:EG23)","v":0},{"$f":"SUM(EH13:EH23)","v":0},{"$f":"SUM(EI13:EI23)","v":0},{"$f":"SUM(EJ13:EJ23)","v":0},{"$f":"SUM(EK13:EK23)","v":0},0,null,{"$f":"SUM(EN13:EN23)","v":0},{"$f":"SUM(EO13:EO23)","v":0},{"$f":"SUM(EP13:EP23)","v":0},{"$f":"SUM(EQ13:EQ23)","v":0},{"$f":"SUM(ER13:ER23)","v":0}]

{"sheet":"ANÁLISE DE CONC","index":6,"n_rows":15,"n_cols":6,"rows_kept":15,"cut":false,"hidden":false,"merged":[[2,1,2,5]]}
[]
[]
[null,"QUADRO COMPARATIVO DE DISCIPLINAS ENTRE CONCURSOS DE INTERESSE"]
[null,"PRF","PF","DEPEN","PC-","CONCURSO 5"]
[null,"PORTUGUES","PORTUGUES","PORTUGUES","PORTUGUES"]
[null,"DIR CONST","DIR CONST","DIR CONST","DIR CONST"]
[null,"DIR ADMIN","DIR ADMIN","DIR ADMIN","DIR ADMIN"]
[null,"DP ","DP ","DP ","DP "]
[null,"DPP","DPP","DPP","DPP"]
[null,"RAC LOG","RAC LOG","RAC LOG","RAC LOG"]
[null,"INFORM","INFORM","INFORM","INFORM"]
[null,"FISICA","CONTABILID","DIR HUMANOS","LEGISL EXTRAVAGANTES"]
[null,"LEGISL PRF","ESTATISTICA","LEGISL EXTRAVAGANTES"]
[null,"LEIS DE TRANSITO","LEGISL EXTRAVAGANTES"]
[null,"LEGISL EXTRAVAGANTES"]

{"sheet":"INÍCIO","index":7,"n_rows":13,"n_cols":6,"rows_kept":13,"cut":false,"hidden":false,"merged":[[2,1,2,3],[3,5,3,6],[4,5,4,6],[5,5,5,6],[6,5,6,6],[12,5,12,6],[7,5,7,6],[8,5,8,6],[9,5,9,6],[10,5,10,6],[11,5,11,6]]}
[]
[]
[]
[null,null,null,null,null,"MENTORIA PARA CARREIRAS POLICIAIS (Clique nos links abaixo)"]
[null,null,null,null,null,"MENTORIA: www.fococaveira.com.br"]
[null,null,null,null,null,"TELEGRAM DE DICAS"]
[null,null,null,null,null,"FACEBOOK"]
[null,null,null,null,null,"INSTAGRAM: @fococaveira_"]
[null,null,null,null,null,"YOUTUBE: Foco Caveira"]
[null,null,null,null,null,"Contato Whatsapp: 67.99287-6697"]
[null,null,null,"Informações de uso da planilha:"]
[null,null,null,"1) ATENÇÃO: NÃO USE ESSA PLANILHA no Google Chrome e nem no Celular.... Faça o download para seu computador e use-a no EXCEL! (ou ela ficará desconfigurada).",null,"ACESSE A TODAS AS PLANILHAS ATUALIZADAS EM NOSSO TELEGRAM. ACESSO PELO SITE WWW.FOCOCAVEIRA.COM.BR"]
[null,null,null,"2) A planinha é totalmente automatizada. Preencher somente nas partes não bloqueadas.",null,"Na mentoria trabalhamos o plano de estudo direcionado para o seu CONCURSO ESPECÍFICO. Além das mentorias, temos o CURSO ESTRATÉGIA POLICIAL - vídeos de como estudar para cada concurso na área policial. Acesse nosso site acima."]